Workbook

Sheet Kompresor
A1: ZH06K1P-PFZ
A2: Topný výkon | B2: kW
A3: tk\tv | B3: -25 | C3: -20 | D3: -15 | E3: -10 | F3: -5 | G3: 0 | H3: 5 | I3: 7 | J3: 10 | K3: 12.5 | L3: 15 | M3: 20 | N3: 25
A4: 17 | B4: 3.87 | C4: 4.58 | D4: 5.42 | E4: 6.4
A5: 20 | B5: 3.87 | C5: 4.57 | D5: 5.41 | E5: 6.39 | F5: 7.53
A6: 25 | B6: 3.85 | C6: 4.55 | D6: 5.38 | E6: 6.33 | F6: 7.45 | G6: 8.73
A7: 30 | B7: 3.82 | C7: 4.52 | D7: 5.33 | E7: 6.26 | F7: 7.34 | G7: 8.58 | H7: 9.99 | I7: 10.6 | J7: 11.6
A8: 35 | B8: 3.8 | C8: 4.49 | D8: 5.27 | E8: 6.17 | F8: 7.21 | G8: 8.4 | H8: 9.76 | I8: 10.35 | J8: 11.3 | K8: 12.15 | L8: 13.05 | M8: 15.05
A9: 40 | B9: 3.79 | C9: 4.46 | D9: 5.21 | E9: 6.08 | F9: 7.07 | G9: 8.2 | H9: 9.5 | I9: 10.05 | J9: 11 | K9: 11.8 | L9: 12.65 | M9: 14.55 | N9: 16.65
A10: 45 | B10: 3.79 | C10: 4.43 | D10: 5.15 | E10: 5.98 | F10: 6.92 | G10: 7.99 | H10: 9.22 | I10: 9.75 | J10: 10.6 | K10: 11.4 | L10: 12.2 | M10: 14 | N10: 16
A11: 50 | C11: 4.42 | D11: 5.1 | E11: 5.88 | F11: 6.76 | G11: 7.77 | H11: 8.92 | I11: 9.42 | J11: 10.25 | K11: 10.95 | L11: 11.75 | M11: 13.4 | N11: 15.3
A12: 55 | D12: 5.06 | E12: 5.78 | F12: 6.6 | G12: 7.54 | H12: 8.61 | I12: 9.08 | J12: 9.83 | K12: 10.5 | L12: 11.25 | M12: 12.8 | N12: 14.6
A13: 60 | E13: 5.7 | F13: 6.45 | G13: 7.31 | H13: 8.29 | I13: 8.73 | J13: 9.42 | K13: 10.05 | L13: 10.7 | M13: 12.15 | N13: 13.85
A14: 65 | F14: 6.31 | G14: 7.09 | H14: 7.98 | I14: 8.37 | J14: 9 | K14: 9.57 | L14: 10.15
A15: 68 | G15: 6.95 | H15: 7.78 | I15: 8.15 | J15: 8.74
A17: Příkon | B17: kW
A18: tk\tv | B18: -25 | C18: -20 | D18: -15 | E18: -10 | F18: -5 | G18: 0 | H18: 5 | I18: 7 | J18: 10 | K18: 12.5 | L18: 15 | M18: 20 | N18: 25
A19: 17 | B19: 1.08 | C19: 1.08 | D19: 1.08 | E19: 1.07
A20: 20 | B20: 1.15 | C20: 1.16 | D20: 1.16 | E20: 1.15 | F20: 1.14
A21: 25 | B21: 1.28 | C21: 1.3 | D21: 1.31 | E21: 1.31 | F21: 1.29 | G21: 1.27
A22: 30 | B22: 1.42 | C22: 1.45 | D22: 1.47 | E22: 1.47 | F22: 1.46 | G22: 1.44 | H22: 1.41 | I22: 1.4 | J22: 1.37
A23: 35 | B23: 1.58 | C23: 1.61 | D23: 1.63 | E23: 1.64 | F23: 1.64 | G23: 1.63 | H23: 1.61 | I23: 1.59 | J23: 1.57 | K23: 1.55 | L23: 1.53 | M23: 1.47
A24: 40 | B24: 1.75 | C24: 1.79 | D24: 1.82 | E24: 1.84 | F24: 1.84 | G24: 1.84 | H24: 1.82 | I24: 1.81 | J24: 1.79 | K24: 1.77 | L24: 1.75 | M24: 1.69 | N24: 1.63
A25: 45 | B25: 1.94 | C25: 1.99 | D25: 2.03 | E25: 2.06 | F25: 2.07 | G25: 2.07 | H25: 2.05 | I25: 2.05 | J25: 2.03 | K25: 2.01 | L25: 1.99 | M25: 1.94 | N25: 1.88
A26: 50 | C26: 2.22 | D26: 2.26 | E26: 2.3 | F26: 2.31 | G26: 2.32 | H26: 2.31 | I26: 2.31 | J26: 2.29 | K26: 2.28 | L26: 2.26 | M26: 2.22 | N26: 2.16
A27: 55 | D27: 2.52 | E27: 2.56 | F27: 2.59 | G27: 2.6 | H27: 2.6 | I27: 2.6 | J27: 2.59 | K27: 2.58 | L27: 2.56 | M27: 2.52 | N27: 2.47
A28: 60 | E28: 2.86 | F28: 2.9 | G28: 2.92 | H28: 2.92 | I28: 2.92 | J28: 2.92 | K28: 2.91 | L28: 2.89 | M28: 2.86 | N28: 2.81
A29: 65 | F29: 3.24 | G29: 3.27 | H29: 3.28 | I29: 3.28 | J29: 3.28 | K29: 3.27 | L29: 3.26
A30: 68 | G30: 3.5 | H30: 3.51 | I30: 3.52 | J30: 3.52
A32: Průtok | B32: g/s
A33: tk\tv | B33: -25 | C33: -20 | D33: -15 | E33: -10 | F33: -5 | G33: 0 | H33: 5 | I33: 7 | J33: 10 | K33: 12.5 | L33: 15 | M33: 20 | N33: 25
A34: 17 | B34: 14.8 | C34: 18.2 | D34: 22.3 | E34: 27
A35: 20 | B35: 14.7 | C35: 18.2 | D35: 22.3 | E35: 27.2 | F35: 32.8
A36: 25 | B36: 14.6 | C36: 18.2 | D36: 22.4 | E36: 27.3 | F36: 33 | G36: 39.6
A37: 30 | B37: 14.4 | C37: 18.1 | D37: 22.4 | E37: 27.3 | F37: 33.1 | G37: 39.7 | H37: 47.2 | I37: 50.5 | J37: 55.8
A38: 35 | B38: 14.1 | C38: 17.9 | D38: 22.2 | E38: 27.2 | F38: 33 | G38: 39.6 | H38: 47.1 | I38: 50.4 | J38: 55.7 | K38: 60.4 | L38: 65.5 | M38: 76.5
A39: 40 | B39: 13.8 | C39: 17.6 | D39: 22 | E39: 27 | F39: 32.7 | G39: 39.3 | H39: 46.9 | I39: 50.2 | J39: 55.5 | K39: 60.2 | L39: 65.2 | M39: 76 | N39: 88.5
A40: 45 | B40: 13.4 | C40: 17.3 | D40: 21.6 | E40: 26.6 | F40: 32.3 | G40: 38.9 | H40: 46.4 | I40: 49.7 | J40: 55 | K40: 59.7 | L40: 64.7 | M40: 76 | N40: 88.5
A41: 50 | C41: 16.8 | D41: 21.2 | E41: 26.1 | F41: 31.8 | G41: 38.3 | H41: 45.8 | I41: 49.1 | J41: 54.3 | K41: 59 | L41: 64 | M41: 75 | N41: 87.5
A42: 55 | D42: 20.6 | E42: 25.5 | F42: 31.1 | G42: 37.6 | H42: 45 | I42: 48.2 | J42: 53.5 | K42: 58.2 | L42: 63.2 | M42: 74.2 | N42: 87
A43: 60 | E43: 24.8 | F43: 30.3 | G43: 36.7 | H43: 44 | I43: 47.3 | J43: 52.5 | K43: 57.1 | L43: 62.2 | M43: 73.2 | N43: 86
A44: 65 | F44: 29.6 | G44: 35.8 | H44: 43.1 | I44: 46.3 | J44: 51.5 | K44: 56.2 | L44: 61.2
A45: 68 | G45: 35.5 | H45: 42.7 | I45: 46 | J45: 51.2
A47: Provozní parametry
A48: chladivo | B48: R410a | C48: -
A49: přehřátí | B49: 5 | C49: K
A50: podchlazení | B50: 2 | C50: K
A51: Výkonnost | B51: 5.13 | C51: m3/h
A53: Zadání | F53: Sání | K53: Výtlak | M53: Parametrizace | R53: Kontrola
A54: Vypařovací teplota | B54: Kon. tep. | C54: Top. Vykon | D54: Příkon | E54: m chladiva | F54: teplota | G54: tlak | H54: entalpie | I54: hustota | J54: entropie | K54: tlak kon | L54: h ie | M54: Pie | N54: η ie | O54: V | P54: λ d | Q54: σ | R54: η ie | S54: odchylka | T54: λ d | U54: odchylka
A55: °C | B55: °C | C55: kW | D55: kW | E55: g/s | F55: °C | G55: kPa | H55: kJ/kg | I55: kg/m3 | J55: kJ/K | K55: kPa | L55: kJ/kg | M55: kW | N55: - | O55: m3/h | P55: - | Q55: -
A56: =$B$3 -> -25 | B56: =$A4 -> 17 | C56: =$B4 -> 3.87 | D56: =$B19 -> 1.08 | E56: =$B34 -> 14.8 | F56: =$A56+$B$49 -> -20 | G56: =Props("P","T",$A56+273.15,"Q",1,$B$48) -> 329.4131534 | H56: =Props("H","T",$F56+273.15,"P",G56,$B$48) -> 416.6832337 | I56: =Props("D","T",$F56+273.15,"P",G56,$B$48) -> 12.42920265 | J56: =Props("S","T",$F56+273.15,"P",G56,$B$48) -> 1.881629033 | K56: =Props("P","T",$B56+273.15,"Q",1,$B$48) -> 1327.367585 | L56: =Props("H","P",K56,"S",J56,$B$48) -> 456.7968421 | M56: =E56/1000*(L56-H56) -> 0.5936814046 | N56: =M56/D56 -> 0.5497050043 | O56: =E56/1000/I56*3600 -> 4.286678842 | P56: =O56/$B$51 -> 0.8356099107 | Q56: =K56/G56 -> 4.029491753 | R56: =-0.0014273*Q56^4 + 0.0300406*Q56^3 - 0.223623*Q56^2 + 0.6484648*Q56 + 0.0323579 -> 0.6035724786 | S56: =(R56-N56)/N56 -> 0.09799342165 | T56: =-0.0329*Q56 + 1.0249 -> 0.8923297213 | U56: =(T56-P56)/Q56 -> 0.01407616993
A57: =$B$3 -> -25 | B57: =$A5 -> 20 | C57: =$B5 -> 3.87 | D57: 1.15 | E57: =$B35 -> 14.7 | F57: =$A57+$B$49 -> -20 | G57: =Props("P","T",$A57+273.15,"Q",1,$B$48) -> 329.4131534 | H57: =Props("H","T",$F57+273.15,"P",G57,$B$48) -> 416.6832337 | I57: =Props("D","T",$F57+273.15,"P",G57,$B$48) -> 12.42920265 | J57: =Props("S","T",$F57+273.15,"P",G57,$B$48) -> 1.881629033 | K57: =Props("P","T",$B57+273.15,"Q",1,$B$48) -> 1442.927359 | L57: =Props("H","P",K57,"S",J57,$B$48) -> 459.3818633 | M57: =E57/1000*(L57-H57) -> 0.6276698553 | N57: =M57/D57 -> 0.5457998742 | O57: =E57/1000/I57*3600 -> 4.257714796 | P57: =O57/$B$51 -> 0.8299638978 | Q57: 4.38029673 | R57: =-0.0014273*Q57^4 + 0.0300406*Q57^3 - 0.223623*Q57^2 + 0.6484648*Q57 + 0.0323579 -> 0.5814789364 | S57: =(R57-N57)/N57 -> 0.06537022799 | T57: =-0.0329*Q57 + 1.0249 -> 0.8807882376 | U57: =(T57-P57)/Q57 -> 0.01160294449
A58: -25 | B58: 25 | C58: 3.85 | D58: 1.28 | E58: 14.6 | F58: -20 | G58: =Props("P","T",$A58+273.15,"Q",1,$B$48) -> 329.4131534 | H58: =Props("H","T",$F58+273.15,"P",G58,$B$48) -> 416.6832337 | I58: =Props("D","T",$F58+273.15,"P",G58,$B$48) -> 12.42920265 | J58: =Props("S","T",$F58+273.15,"P",G58,$B$48) -> 1.881629033 | K58: =Props("P","T",$B58+273.15,"Q",1,$B$48) -> 1652.137797 | L58: =Props("H","P",K58,"S",J58,$B$48) -> 463.6115908 | M58: 0.6851540131 | N58: 0.5352765727 | O58: 4.228750749 | P58: 0.8243178849 | Q58: 5.01539717 | R58: 0.5463776973 | S58: 0.02073904425 | T58: 0.8598934331 | U58: 0.007093266402
A59: -25 | B59: 30 | C59: 3.82 | D59: 1.42 | E59: 14.4 | F59: -20 | G59: =Props("P","T",$A59+273.15,"Q",1,$B$48) -> 329.4131534 | H59: =Props("H","T",$F59+273.15,"P",G59,$B$48) -> 416.6832337 | I59: =Props("D","T",$F59+273.15,"P",G59,$B$48) -> 12.42920265 | J59: =Props("S","T",$F59+273.15,"P",G59,$B$48) -> 1.881629033 | K59: =Props("P","T",$B59+273.15,"Q",1,$B$48) -> 1883.408413 | L59: =Props("H","P",K59,"S",J59,$B$48) -> 467.7456667 | M59: 0.7352990344 | N59: 0.5178162214 | O59: 4.170822657 | P59: 0.813025859 | Q59: 5.717465722 | R59: 0.5192249607 | S59: 0.002720539265 | T59: 0.8367953778 | U59: 0.004157352204
A60: -25 | B60: =$A8 -> 35 | C60: =$B8 -> 3.8 | D60: =$B23 -> 1.58 | E60: =$B38 -> 14.1 | F60: -20 | G60: =Props("P","T",$A60+273.15,"Q",1,$B$48) -> 329.4131534 | H60: =Props("H","T",$F60+273.15,"P",G60,$B$48) -> 416.6832337 | I60: =Props("D","T",$F60+273.15,"P",G60,$B$48) -> 12.42920265 | J60: =Props("S","T",$F60+273.15,"P",G60,$B$48) -> 1.881629033 | K60: =Props("P","T",$B60+273.15,"Q",1,$B$48) -> 2138.327152 | L60: =Props("H","P",K60,"S",J60,$B$48) -> 471.7876304 | M60: 0.7769719934 | N60: 0.4917544262 | O60: 4.083930518 | P60: =O60/$B$51 -> 0.7960878203 | Q60: 6.491322919 | R60: 0.5015512486 | S60: 0.01992218442 | T60: 0.811335476 | U60: 0.002348928846
A61: -25 | B61: =$A9 -> 40 | C61: =$B9 -> 3.79 | D61: =$B24 -> 1.75 | E61: =$B39 -> 13.8 | F61: -20 | G61: =Props("P","T",$A61+273.15,"Q",1,$B$48) -> 329.4131534 | H61: =Props("H","T",$F61+273.15,"P",G61,$B$48) -> 416.6832337 | I61: =Props("D","T",$F61+273.15,"P",G61,$B$48) -> 12.42920265 | J61: =Props("S","T",$F61+273.15,"P",G61,$B$48) -> 1.881629033 | K61: =Props("P","T",$B61+273.15,"Q",1,$B$48) -> 2418.608528 | L61: =Props("H","P",K61,"S",J61,$B$48) -> 475.7416109 | M61: 0.8150056047 | N61: 0.4657174884 | O61: 3.997038379 | P61: 0.7791497816 | Q61: 7.342173508 | R61: 0.4807959214 | S61: 0.03237678074 | T61: 0.7833424916 | U61: 0.0005710448
A62: -25 | B62: =$A10 -> 45 | C62: =$B10 -> 3.79 | D62: =$B25 -> 1.94 | E62: =$B40 -> 13.4 | F62: -20 | G62: =Props("P","T",$A62+273.15,"Q",1,$B$48) -> 329.4131534 | H62: =Props("H","T",$F62+273.15,"P",G62,$B$48) -> 416.6832337 | I62: =Props("D","T",$F62+273.15,"P",G62,$B$48) -> 12.42920265 | J62: =Props("S","T",$F62+273.15,"P",G62,$B$48) -> 1.881629033 | K62: =Props("P","T",$B62+273.15,"Q",1,$B$48) -> 2726.131032 | L62: =Props("H","P",K62,"S",J62,$B$48) -> 479.6124258 | M62: 0.8432511739 | N62: 0.4346655536 | O62: 3.881182195 | P62: 0.7565657299 | Q62: 8.27572003 | R62: 0.4151919321 | S62: -0.04480139109 | T62: 0.752628811 | U62: -0.0004757192031
A63: =$C$3 -> -20 | B63: =$A4 -> 17 | C63: =$C4 -> 4.58 | D63: =$C19 -> 1.08 | E63: =$C34 -> 18.2 | F63: -15 | G63: =Props("P","T",$A63+273.15,"Q",1,$B$48) -> 399.304644 | H63: =Props("H","T",$F63+273.15,"P",G63,$B$48) -> 418.9512666 | I63: =Props("D","T",$F63+273.15,"P",G63,$B$48) -> 14.95948042 | J63: =Props("S","T",$F63+273.15,"P",G63,$B$48) -> 1.870479315 | K63: =Props("P","T",$B63+273.15,"Q",1,$B$48) -> 1327.367585 | L63: =Props("H","P",K63,"S",J63,$B$48) -> 453.2775358 | M63: 0.6247380997 | N63: 0.5784612035 | O63: =E63/1000/I63*3600 -> 4.379831261 | P63: 0.8537682771 | Q63: 3.324197715 | R63: 0.6460898272 | S63: 0.1169112524 | T63: 0.9155338952 | U63: 0.01858060904
A64: =$C$3 -> -20 | B64: 20 | C64: 4.57 | D64: 1.16 | E64: 18.2 | F64: -15 | G64: =Props("P","T",$A64+273.15,"Q",1,$B$48) -> 399.304644 | H64: =Props("H","T",$F64+273.15,"P",G64,$B$48) -> 418.9512666 | I64: =Props("D","T",$F64+273.15,"P",G64,$B$48) -> 14.95948042 | J64: =Props("S","T",$F64+273.15,"P",G64,$B$48) -> 1.870479315 | K64: =Props("P","T",$B64+273.15,"Q",1,$B$48) -> 1442.927359 | L64: =Props("H","P",K64,"S",J64,$B$48) -> 455.8145995 | M64: 0.6709126583 | N64: 0.5783729813 | O64: 4.379831261 | P64: 0.8537682771 | Q64: 3.613600243 | R64: 0.6297017241 | S64: 0.08874678544 | T64: 0.906012552 | U64: 0.01445767971
A65: -20 | B65: 25 | C65: 4.55 | D65: 1.3 | E65: 18.2 | F65: -15 | G65: =Props("P","T",$A65+273.15,"Q",1,$B$48) -> 399.304644 | H65: =Props("H","T",$F65+273.15,"P",G65,$B$48) -> 418.9512666 | I65: =Props("D","T",$F65+273.15,"P",G65,$B$48) -> 14.95948042 | J65: =Props("S","T",$F65+273.15,"P",G65,$B$48) -> 1.870479315 | K65: =Props("P","T",$B65+273.15,"Q",1,$B$48) -> 1652.137797 | L65: =Props("H","P",K65,"S",J65,$B$48) -> 459.9650599 | M65: 0.7464510378 | N65: 0.574193106 | O65: 4.379831261 | P65: 0.8537682771 | Q65: 4.137537147 | R65: 0.5966772033 | S65: 0.0391577278 | T65: 0.8887750279 | U65: 0.008460770155
A66: -20 | B66: 30 | C66: 4.52 | D66: 1.45 | E66: 18.1 | F66: -15 | G66: =Props("P","T",$A66+273.15,"Q",1,$B$48) -> 399.304644 | H66: =Props("H","T",$F66+273.15,"P",G66,$B$48) -> 418.9512666 | I66: =Props("D","T",$F66+273.15,"P",G66,$B$48) -> 14.95948042 | J66: =Props("S","T",$F66+273.15,"P",G66,$B$48) -> 1.870479315 | K66: =Props("P","T",$B66+273.15,"Q",1,$B$48) -> 1883.408413 | L66: =Props("H","P",K66,"S",J66,$B$48) -> 464.0206182 | M66: 0.8157552639 | N66: 0.5625898372 | O66: 4.355766254 | P66: 0.8490772426 | Q66: 4.716720532 | R66: 0.5618129848 | S66: -0.001380850365 | T66: 0.8697198945 | U66: 0.004376483997
A67: -20 | B67: 35 | C67: 4.49 | D67: 1.61 | E67: 17.9 | F67: -15 | G67: =Props("P","T",$A67+273.15,"Q",1,$B$48) -> 399.304644 | H67: =Props("H","T",$F67+273.15,"P",G67,$B$48) -> 418.9512666 | I67: =Props("D","T",$F67+273.15,"P",G67,$B$48) -> 14.95948042 | J67: =Props("S","T",$F67+273.15,"P",G67,$B$48) -> 1.870479315 | K67: =Props("P","T",$B67+273.15,"Q",1,$B$48) -> 2138.327152 | L67: =Props("H","P",K67,"S",J67,$B$48) -> 467.9847246 | M67: 0.8776988974 | N67: 0.5451545946 | O67: 4.307636241 | P67: 0.8396951736 | Q67: 5.355127181 | R67: 0.5316118171 | S67: -0.02484208646 | T67: 0.8487163158 | U67: 0.001684580375
A68: -20 | B68: 40 | C68: 4.46 | D68: 1.79 | E68: 17.6 | F68: -15 | G68: =Props("P","T",$A68+273.15,"Q",1,$B$48) -> 399.304644 | H68: =Props("H","T",$F68+273.15,"P",G68,$B$48) -> 418.9512666 | I68: =Props("D","T",$F68+273.15,"P",G68,$B$48) -> 14.95948042 | J68: =Props("S","T",$F68+273.15,"P",G68,$B$48) -> 1.870479315 | K68: =Props("P","T",$B68+273.15,"Q",1,$B$48) -> 2418.608528 | L68: =Props("H","P",K68,"S",J68,$B$48) -> 471.8614192 | M68: 0.931218685 | N68: 0.5202339022 | O68: 4.23544122 | P68: 0.8256220701 | Q68: 6.057050837 | R68: 0.5103767945 | S68: -0.01894745358 | T68: 0.8256230275 | U68: 1.580530652e-07
A69: -20 | B69: 45 | C69: 4.43 | D69: 1.99 | E69: 17.3 | F69: -15 | G69: =Props("P","T",$A69+273.15,"Q",1,$B$48) -> 399.304644 | H69: =Props("H","T",$F69+273.15,"P",G69,$B$48) -> 418.9512666 | I69: =Props("D","T",$F69+273.15,"P",G69,$B$48) -> 14.95948042 | J69: =Props("S","T",$F69+273.15,"P",G69,$B$48) -> 1.870479315 | K69: =Props("P","T",$B69+273.15,"Q",1,$B$48) -> 2726.131032 | L69: =Props("H","P",K69,"S",J69,$B$48) -> 475.6554304 | M69: 0.9809820336 | N69: 0.4929557958 | O69: 4.163246199 | P69: 0.8115489667 | Q69: 6.827195909 | R69: 0.4949841648 | S69: 0.004114707744 | T69: 0.8002852546 | U69: -0.001649829917
A70: -20 | B70: 50 | C70: 4.42 | D70: 2.22 | E70: 16.8 | F70: -15 | G70: =Props("P","T",$A70+273.15,"Q",1,$B$48) -> 399.304644 | H70: =Props("H","T",$F70+273.15,"P",G70,$B$48) -> 418.9512666 | I70: =Props("D","T",$F70+273.15,"P",G70,$B$48) -> 14.95948042 | J70: =Props("S","T",$F70+273.15,"P",G70,$B$48) -> 1.870479315 | K70: =Props("P","T",$B70+273.15,"Q",1,$B$48) -> 3062.99291 | L70: =Props("H","P",K70,"S",J70,$B$48) -> 479.3723439 | M70: 1.015074098 | N70: 0.4572405848 | O70: 4.042921164 | P70: 0.7880937942 | Q70: 7.670817146 | R70: 0.465734977 | S70: 0.01857751152 | T70: 0.7725301159 | U70: -0.002028946594
A71: =$D$3 -> -15 | B71: =$A4 -> 17 | C71: =$D4 -> 5.42 | D71: =$D19 -> 1.08 | E71: =$D34 -> 22.3 | F71: -10 | G71: =Props("P","T",$A71+273.15,"Q",1,$B$48) -> 480.0397118 | H71: =Props("H","T",$F71+273.15,"P",G71,$B$48) -> 421.1169685 | I71: =Props("D","T",$F71+273.15,"P",G71,$B$48) -> 17.88397083 | J71: =Props("S","T",$F71+273.15,"P",G71,$B$48) -> 1.859874849 | K71: =Props("P","T",$B71+273.15,"Q",1,$B$48) -> 1327.367585 | L71: =Props("H","P",K71,"S",J71,$B$48) -> 449.9638798 | M71: 0.6432861236 | N71: 0.5956352996 | O71: 4.488935972 | P71: 0.8750362519 | Q71: 2.765120369 | R71: 0.6673172684 | S71: 0.1203454007 | T71: 0.9339275399 | U71: 0.02129791118
A72: =$D$3 -> -15 | B72: 20 | C72: 5.41 | D72: 1.16 | E72: 22.3 | F72: -10 | G72: =Props("P","T",$A72+273.15,"Q",1,$B$48) -> 480.0397118 | H72: =Props("H","T",$F72+273.15,"P",G72,$B$48) -> 421.1169685 | I72: =Props("D","T",$F72+273.15,"P",G72,$B$48) -> 17.88397083 | J72: =Props("S","T",$F72+273.15,"P",G72,$B$48) -> 1.859874849 | K72: =Props("P","T",$B72+273.15,"Q",1,$B$48) -> 1442.927359 | L72: =Props("H","P",K72,"S",J72,$B$48) -> 452.4553461 | M72: 0.6988458216 | N72: 0.6024532945 | O72: 4.488935972 | P72: 0.8750362519 | Q72: 3.005849981 | R72: 0.6604166617 | S72: 0.09621221707 | T72: 0.9260075356 | U72: 0.01695736117
A73: -15 | B73: 25 | C73: 5.38 | D73: 1.31 | E73: 22.4 | F73: -10 | G73: =Props("P","T",$A73+273.15,"Q",1,$B$48) -> 480.0397118 | H73: =Props("H","T",$F73+273.15,"P",G73,$B$48) -> 421.1169685 | I73: =Props("D","T",$F73+273.15,"P",G73,$B$48) -> 17.88397083 | J73: =Props("S","T",$F73+273.15,"P",G73,$B$48) -> 1.859874849 | K73: =Props("P","T",$B73+273.15,"Q",1,$B$48) -> 1652.137797 | L73: =Props("H","P",K73,"S",J73,$B$48) -> 456.5304042 | M73: 0.7932609606 | N73: 0.605542718 | O73: 4.50906573 | P73: 0.8789601813 | Q73: 3.441669005 | R73: 0.6397277597 | S73: 0.0564535592 | T73: 0.9116690897 | U73: 0.00950379262
A74: -15 | B74: 30 | C74: 5.33 | D74: 1.47 | E74: 22.4 | F74: -10 | G74: =Props("P","T",$A74+273.15,"Q",1,$B$48) -> 480.0397118 | H74: =Props("H","T",$F74+273.15,"P",G74,$B$48) -> 421.1169685 | I74: =Props("D","T",$F74+273.15,"P",G74,$B$48) -> 17.88397083 | J74: =Props("S","T",$F74+273.15,"P",G74,$B$48) -> 1.859874849 | K74: =Props("P","T",$B74+273.15,"Q",1,$B$48) -> 1883.408413 | L74: =Props("H","P",K74,"S",J74,$B$48) -> 460.5112311 | M74: 0.8824314828 | N74: 0.6002935257 | O74: 4.50906573 | P74: 0.8789601813 | Q74: 3.923442928 | R74: 0.6103510299 | S74: 0.01675431048 | T74: 0.8958187277 | U74: 0.004296875656
A75: -15 | B75: 35 | C75: 5.27 | D75: 1.63 | E75: 22.2 | F75: -10 | G75: =Props("P","T",$A75+273.15,"Q",1,$B$48) -> 480.0397118 | H75: =Props("H","T",$F75+273.15,"P",G75,$B$48) -> 421.1169685 | I75: =Props("D","T",$F75+273.15,"P",G75,$B$48) -> 17.88397083 | J75: =Props("S","T",$F75+273.15,"P",G75,$B$48) -> 1.859874849 | K75: =Props("P","T",$B75+273.15,"Q",1,$B$48) -> 2138.327152 | L75: =Props("H","P",K75,"S",J75,$B$48) -> 464.4011962 | M75: 0.9609098555 | N75: 0.5895152488 | O75: 4.468806214 | P75: 0.8711123225 | Q75: 4.454479702 | R75: 0.5769735487 | S75: -0.02127459833 | T75: 0.8783476178 | U75: 0.001624273946
A76: -15 | B76: 40 | C76: 5.21 | D76: 1.82 | E76: 22 | F76: -10 | G76: =Props("P","T",$A76+273.15,"Q",1,$B$48) -> 480.0397118 | H76: =Props("H","T",$F76+273.15,"P",G76,$B$48) -> 421.1169685 | I76: =Props("D","T",$F76+273.15,"P",G76,$B$48) -> 17.88397083 | J76: =Props("S","T",$F76+273.15,"P",G76,$B$48) -> 1.859874849 | K76: =Props("P","T",$B76+273.15,"Q",1,$B$48) -> 2418.608528 | L76: =Props("H","P",K76,"S",J76,$B$48) -> 468.2042597 | M76: 1.035920407 | N76: 0.5691870369 | O76: 4.428546699 | P76: 0.8632644637 | Q76: 5.038350929 | R76: 0.5452833991 | S76: -0.04199610355 | T76: 0.8591382544 | U76: -0.0008189602801
A77: -15 | B77: 45 | C77: 5.15 | D77: 2.03 | E77: 21.6 | F77: -10 | G77: =Props("P","T",$A77+273.15,"Q",1,$B$48) -> 480.0397118 | H77: =Props("H","T",$F77+273.15,"P",G77,$B$48) -> 421.1169685 | I77: =Props("D","T",$F77+273.15,"P",G77,$B$48) -> 17.88397083 | J77: =Props("S","T",$F77+273.15,"P",G77,$B$48) -> 1.859874849 | K77: =Props("P","T",$B77+273.15,"Q",1,$B$48) -> 2726.131032 | L77: =Props("H","P",K77,"S",J77,$B$48) -> 471.9250695 | M77: 1.097454982 | N77: 0.5406182178 | O77: 4.348027668 | P77: 0.8475687462 | Q77: 5.678969811 | R77: 0.5203847317 | S77: -0.037426571 | T77: 0.8380618932 | U77: -0.001674045348
A78: -15 | B78: 50 | C78: 5.1 | D78: 2.26 | E78: 21.2 | F78: -10 | G78: =Props("P","T",$A78+273.15,"Q",1,$B$48) -> 480.0397118 | H78: =Props("H","T",$F78+273.15,"P",G78,$B$48) -> 421.1169685 | I78: =Props("D","T",$F78+273.15,"P",G78,$B$48) -> 17.88397083 | J78: =Props("S","T",$F78+273.15,"P",G78,$B$48) -> 1.859874849 | K78: =Props("P","T",$B78+273.15,"Q",1,$B$48) -> 3062.99291 | L78: =Props("H","P",K78,"S",J78,$B$48) -> 475.5691274 | M78: 1.154385769 | N78: 0.5107901632 | O78: 4.267508637 | P78: 0.8318730287 | Q78: 6.380707333 | R78: 0.5036559965 | S78: -0.01396692257 | T78: 0.8149747287 | U78: -0.002648342741
A79: -15 | B79: 55 | C79: 5.06 | D79: 2.52 | E79: 20.6 | F79: -10 | G79: =Props("P","T",$A79+273.15,"Q",1,$B$48) -> 480.0397118 | H79: =Props("H","T",$F79+273.15,"P",G79,$B$48) -> 421.1169685 | I79: =Props("D","T",$F79+273.15,"P",G79,$B$48) -> 17.88397083 | J79: =Props("S","T",$F79+273.15,"P",G79,$B$48) -> 1.859874849 | K79: =Props("P","T",$B79+273.15,"Q",1,$B$48) -> 3431.600955 | L79: =Props("H","P",K79,"S",J79,$B$48) -> 479.1430882 | M79: 1.195338067 | N79: 0.4743405027 | O79: 4.146730091 | P79: 0.8083294524 | Q79: =K79/G79 -> 7.148577233 | R79: 0.4871093296 | S79: 0.02691911559 | T79: 0.789711809 | U79: -0.002604384446
A80: =$E$3 -> -10 | B80: =$A4 -> 17 | C80: =$E4 -> 6.4 | D80: =$E19 -> 1.07 | E80: =$E34 -> 27 | F80: -5 | G80: =Props("P","T",$A80+273.15,"Q",1,$B$48) -> 572.6755955 | H80: =Props("H","T",$F80+273.15,"P",G80,$B$48) -> 423.1704486 | I80: =Props("D","T",$F80+273.15,"P",G80,$B$48) -> 21.25018675 | J80: =Props("S","T",$F80+273.15,"P",G80,$B$48) -> 1.849737429 | K80: =Props("P","T",$B80+273.15,"Q",1,$B$48) -> 1327.367585 | L80: =Props("H","P",K80,"S",J80,$B$48) -> 446.8260488 | M80: 0.6387012042 | N80: 0.5969170133 | O80: 4.57407745 | P80: 0.8916330311 | Q80: 2.31783508 | R80: 0.6668869961 | S80: 0.1172189454 | T80: 0.9486432259 | U80: 0.02459631199
A81: =$E$3 -> -10 | B81: 20 | C81: 6.39 | D81: 1.15 | E81: 27.2 | F81: -5 | G81: =Props("P","T",$A81+273.15,"Q",1,$B$48) -> 572.6755955 | H81: =Props("H","T",$F81+273.15,"P",G81,$B$48) -> 423.1704486 | I81: =Props("D","T",$F81+273.15,"P",G81,$B$48) -> 21.25018675 | J81: =Props("S","T",$F81+273.15,"P",G81,$B$48) -> 1.849737429 | K81: =Props("P","T",$B81+273.15,"Q",1,$B$48) -> 1442.927359 | L81: =Props("H","P",K81,"S",J81,$B$48) -> 449.2739413 | M81: 0.7100149997 | N81: 0.6174043476 | O81: 4.607959505 | P81: 0.8982377202 | Q81: 2.519624321 | R81: 0.6695732137 | S81: 0.08449708259 | T81: 0.9420043598 | U81: 0.01737030368
A82: -10 | B82: 25 | C82: 6.33 | D82: 1.31 | E82: 27.3 | F82: -5 | G82: =Props("P","T",$A82+273.15,"Q",1,$B$48) -> 572.6755955 | H82: =Props("H","T",$F82+273.15,"P",G82,$B$48) -> 423.1704486 | I82: =Props("D","T",$F82+273.15,"P",G82,$B$48) -> 21.25018675 | J82: =Props("S","T",$F82+273.15,"P",G82,$B$48) -> 1.849737429 | K82: =Props("P","T",$B82+273.15,"Q",1,$B$48) -> 1652.137797 | L82: =Props("H","P",K82,"S",J82,$B$48) -> 453.276908 | M82: 0.8219063416 | N82: 0.6274094211 | O82: 4.624900532 | P82: 0.9015400648 | Q82: 2.884945352 | R82: 0.6643881696 | S82: 0.05893878419 | T82: 0.9299852979 | U82: 0.009859886305
A83: -10 | B83: 30 | C83: 6.26 | D83: 1.47 | E83: 27.3 | F83: -5 | G83: =Props("P","T",$A83+273.15,"Q",1,$B$48) -> 572.6755955 | H83: =Props("H","T",$F83+273.15,"P",G83,$B$48) -> 423.1704486 | I83: =Props("D","T",$F83+273.15,"P",G83,$B$48) -> 21.25018675 | J83: =Props("S","T",$F83+273.15,"P",G83,$B$48) -> 1.849737429 | K83: =Props("P","T",$B83+273.15,"Q",1,$B$48) -> 1883.408413 | L83: =Props("H","P",K83,"S",J83,$B$48) -> 457.1862443 | M83: 0.9286312228 | N83: 0.6317219203 | O83: 4.624900532 | P83: 0.9015400648 | Q83: 3.288787627 | R83: 0.6479113281 | S83: 0.02562742768 | T83: 0.9166988871 | U83: 0.004609243293
A84: -10 | B84: 35 | C84: 6.17 | D84: 1.64 | E84: 27.2 | F84: -5 | G84: =Props("P","T",$A84+273.15,"Q",1,$B$48) -> 572.6755955 | H84: =Props("H","T",$F84+273.15,"P",G84,$B$48) -> 423.1704486 | I84: =Props("D","T",$F84+273.15,"P",G84,$B$48) -> 21.25018675 | J84: =Props("S","T",$F84+273.15,"P",G84,$B$48) -> 1.849737429 | K84: =Props("P","T",$B84+273.15,"Q",1,$B$48) -> 2138.327152 | L84: =Props("H","P",K84,"S",J84,$B$48) -> 461.0052467 | M84: 1.029106508 | N84: 0.6275039681 | O84: 4.607959505 | P84: 0.8982377202 | Q84: 3.733924003 | R84: 0.6223227677 | S84: -0.00825684096 | T84: 0.9020539003 | U84: 0.001022029391
A85: -10 | B85: 40 | C85: 6.08 | D85: 1.84 | E85: 27 | F85: -5 | G85: =Props("P","T",$A85+273.15,"Q",1,$B$48) -> 572.6755955 | H85: =Props("H","T",$F85+273.15,"P",G85,$B$48) -> 423.1704486 | I85: =Props("D","T",$F85+273.15,"P",G85,$B$48) -> 21.25018675 | J85: =Props("S","T",$F85+273.15,"P",G85,$B$48) -> 1.849737429 | K85: =Props("P","T",$B85+273.15,"Q",1,$B$48) -> 2418.608528 | L85: =Props("H","P",K85,"S",J85,$B$48) -> 464.7378032 | M85: 1.122318573 | N85: 0.6099557462 | O85: 4.57407745 | P85: 0.8916330311 | Q85: 4.223348344 | R85: 0.5912424169 | S85: -0.03067981481 | T85: 0.8859518395 | U85: -0.001345186601
A86: -10 | B86: 45 | C86: 5.98 | D86: 2.06 | E86: 26.6 | F86: -5 | G86: =Props("P","T",$A86+273.15,"Q",1,$B$48) -> 572.6755955 | H86: =Props("H","T",$F86+273.15,"P",G86,$B$48) -> 423.1704486 | I86: =Props("D","T",$F86+273.15,"P",G86,$B$48) -> 21.25018675 | J86: =Props("S","T",$F86+273.15,"P",G86,$B$48) -> 1.849737429 | K86: =Props("P","T",$B86+273.15,"Q",1,$B$48) -> 2726.131032 | L86: =Props("H","P",K86,"S",J86,$B$48) -> 468.3884892 | M86: 1.20279988 | N86: 0.583883437 | O86: 4.506313339 | P86: 0.8784236529 | Q86: 4.760340851 | R86: 0.559426893 | S86: -0.04188600407 | T86: 0.868284786 | U86: -0.002129861529
A87: -10 | B87: 50 | C87: 5.88 | D87: 2.3 | E87: 26.1 | F87: -5 | G87: =Props("P","T",$A87+273.15,"Q",1,$B$48) -> 572.6755955 | H87: =Props("H","T",$F87+273.15,"P",G87,$B$48) -> 423.1704486 | I87: =Props("D","T",$F87+273.15,"P",G87,$B$48) -> 21.25018675 | J87: =Props("S","T",$F87+273.15,"P",G87,$B$48) -> 1.849737429 | K87: =Props("P","T",$B87+273.15,"Q",1,$B$48) -> 3062.99291 | L87: =Props("H","P",K87,"S",J87,$B$48) -> 471.9627314 | M87: 1.273478581 | N87: 0.5536863396 | O87: 4.421608201 | P87: 0.8619119301 | Q87: 5.348565459 | R87: 0.531867675 | S87: -0.03940618178 | T87: 0.8489321964 | U87: -0.002426769151
A88: -10 | B88: 55 | C88: 5.78 | D88: 2.56 | E88: 25.5 | F88: -5 | G88: =Props("P","T",$A88+273.15,"Q",1,$B$48) -> 572.6755955 | H88: =Props("H","T",$F88+273.15,"P",G88,$B$48) -> 423.1704486 | I88: =Props("D","T",$F88+273.15,"P",G88,$B$48) -> 21.25018675 | J88: =Props("S","T",$F88+273.15,"P",G88,$B$48) -> 1.849737429 | K88: =Props("P","T",$B88+273.15,"Q",1,$B$48) -> 3431.600955 | L88: =Props("H","P",K88,"S",J88,$B$48) -> 475.4671012 | M88: 1.333564641 | N88: 0.5209236879 | O88: 4.319962036 | P88: 0.8420978627 | Q88: 5.992224885 | R88: 0.5118931881 | S88: -0.01733555217 | T88: 0.8277558013 | U88: -0.002393445123
A89: -10 | B89: 60 | C89: 5.7 | D89: 2.86 | E89: 24.8 | F89: -5 | G89: =Props("P","T",$A89+273.15,"Q",1,$B$48) -> 572.6755955 | H89: =Props("H","T",$F89+273.15,"P",G89,$B$48) -> 423.1704486 | I89: =Props("D","T",$F89+273.15,"P",G89,$B$48) -> 21.25018675 | J89: =Props("S","T",$F89+273.15,"P",G89,$B$48) -> 1.849737429 | K89: =Props("P","T",$B89+273.15,"Q",1,$B$48) -> 3834.827699 | L89: =Props("H","P",K89,"S",J89,$B$48) -> 478.9099012 | M89: 1.382338423 | N89: 0.4833351129 | O89: 4.201374843 | P89: 0.8189814508 | Q89: 6.696335114 | R89: 0.4976389597 | S89: 0.02959405679 | T89: 0.8045905747 | U89: -0.002149067481
A90: =$F$3 -> -5 | B90: =$A5 -> 20 | C90: =$F5 -> 7.53 | D90: =$F20 -> 1.14 | E90: =$F35 -> 32.8 | F90: 0 | G90: =Props("P","T",$A90+273.15,"Q",1,$B$48) -> 678.3102521 | H90: =Props("H","T",$F90+273.15,"P",G90,$B$48) -> 425.100572 | I90: =Props("D","T",$F90+273.15,"P",G90,$B$48) -> 25.11163986 | J90: =Props("S","T",$F90+273.15,"P",G90,$B$48) -> 1.839990375 | K90: =Props("P","T",$B90+273.15,"Q",1,$B$48) -> 1442.927359 | L90: =Props("H","P",K90,"S",J90,$B$48) -> 446.241965 | M90: 0.6934376896 | N90: 0.6082786751 | O90: 4.702201874 | P90: 0.9166085525 | Q90: 2.127238022 | R90: 0.6598168652 | S90: 0.08472792522 | T90: 0.9549138691 | U90: 0.01800706654
A91: -5 | B91: 25 | C91: 7.45 | D91: 1.29 | E91: 33 | F91: 0 | G91: =Props("P","T",$A91+273.15,"Q",1,$B$48) -> 678.3102521 | H91: =Props("H","T",$F91+273.15,"P",G91,$B$48) -> 425.100572 | I91: =Props("D","T",$F91+273.15,"P",G91,$B$48) -> 25.11163986 | J91: =Props("S","T",$F91+273.15,"P",G91,$B$48) -> 1.839990375 | K91: =Props("P","T",$B91+273.15,"Q",1,$B$48) -> 1652.137797 | L91: =Props("H","P",K91,"S",J91,$B$48) -> 450.1756093 | M91: 0.8274762307 | N91: 0.6414544424 | O91: 4.730873837 | P91: 0.922197629 | Q91: 2.435666853 | R91: 0.6690044591 | S91: 0.0429492959 | T91: 0.9447665605 | U91: 0.009266017426
A92: -5 | B92: 30 | C92: 7.34 | D92: 1.46 | E92: 33.1 | F92: 0 | G92: =Props("P","T",$A92+273.15,"Q",1,$B$48) -> 678.3102521 | H92: =Props("H","T",$F92+273.15,"P",G92,$B$48) -> 425.100572 | I92: =Props("D","T",$F92+273.15,"P",G92,$B$48) -> 25.11163986 | J92: =Props("S","T",$F92+273.15,"P",G92,$B$48) -> 1.839990375 | K92: =Props("P","T",$B92+273.15,"Q",1,$B$48) -> 1883.408413 | L92: =Props("H","P",K92,"S",J92,$B$48) -> 454.0161609 | M92: 0.9571059946 | N92: 0.6555520511 | O92: 4.745209818 | P92: =O92/$B$51 -> 0.9249921673 | Q92: 2.776617937 | R92: 0.6670836089 | S92: 0.01759060602 | T92: 0.9335492699 | U92: 0.003081843734
A93: -5 | B93: 35 | C93: 7.21 | D93: 1.64 | E93: 33 | F93: 0 | G93: =Props("P","T",$A93+273.15,"Q",1,$B$48) -> 678.3102521 | H93: =Props("H","T",$F93+273.15,"P",G93,$B$48) -> 425.100572 | I93: =Props("D","T",$F93+273.15,"P",G93,$B$48) -> 25.11163986 | J93: =Props("S","T",$F93+273.15,"P",G93,$B$48) -> 1.839990375 | K93: =Props("P","T",$B93+273.15,"Q",1,$B$48) -> 2138.327152 | L93: =Props("H","P",K93,"S",J93,$B$48) -> 457.7668508 | M93: 1.0779872 | N93: 0.6573092682 | O93: 4.730873837 | P93: 0.922197629 | Q93: 3.152432306 | R93: 0.6544332231 | S93: -0.004375482358 | T93: 0.9211849771 | U93: -0.0003212287516
A94: -5 | B94: 40 | C94: 7.07 | D94: 1.84 | E94: 32.7 | F94: 0 | G94: =Props("P","T",$A94+273.15,"Q",1,$B$48) -> 678.3102521 | H94: =Props("H","T",$F94+273.15,"P",G94,$B$48) -> 425.100572 | I94: =Props("D","T",$F94+273.15,"P",G94,$B$48) -> 25.11163986 | J94: =Props("S","T",$F94+273.15,"P",G94,$B$48) -> 1.839990375 | K94: =Props("P","T",$B94+273.15,"Q",1,$B$48) -> 2418.608528 | L94: =Props("H","P",K94,"S",J94,$B$48) -> 461.4315019 | M94: 1.188021407 | N94: 0.6456638083 | O94: 4.687865893 | P94: 0.9138140142 | Q94: 3.565637583 | R94: 0.6325694578 | S94: -0.02028044671 | T94: 0.9075905235 | U94: -0.001745407533
A95: -5 | B95: 45 | C95: 6.92 | D95: 2.07 | E95: 32.3 | F95: 0 | G95: =Props("P","T",$A95+273.15,"Q",1,$B$48) -> 678.3102521 | H95: =Props("H","T",$F95+273.15,"P",G95,$B$48) -> 425.100572 | I95: =Props("D","T",$F95+273.15,"P",G95,$B$48) -> 25.11163986 | J95: =Props("S","T",$F95+273.15,"P",G95,$B$48) -> 1.839990375 | K95: =Props("P","T",$B95+273.15,"Q",1,$B$48) -> 2726.131032 | L95: =Props("H","P",K95,"S",J95,$B$48) -> 465.0146247 | M95: 1.289223904 | N95: 0.6228134801 | O95: 4.630521968 | P95: 0.9026358611 | Q95: 4.019003138 | R95: 0.6042432672 | S95: -0.02981665213 | T95: 0.8926747968 | U95: -0.002478491314
A96: -5 | B96: 50 | C96: 6.76 | D96: 2.31 | E96: 31.8 | F96: 0 | G96: =Props("P","T",$A96+273.15,"Q",1,$B$48) -> 678.3102521 | H96: =Props("H","T",$F96+273.15,"P",G96,$B$48) -> 425.100572 | I96: =Props("D","T",$F96+273.15,"P",G96,$B$48) -> 25.11163986 | J96: =Props("S","T",$F96+273.15,"P",G96,$B$48) -> 1.839990375 | K96: =Props("P","T",$B96+273.15,"Q",1,$B$48) -> 3062.99291 | L96: =Props("H","P",K96,"S",J96,$B$48) -> 468.5215786 | M96: 1.380788009 | N96: 0.597743727 | O96: 4.558842061 | P96: 0.8886631698 | Q96: 4.515622313 | R96: 0.5733249308 | S96: -0.04085161432 | T96: 0.8763360259 | U96: -0.002729888159
A97: -5 | B97: 55 | C97: 6.6 | D97: 2.59 | E97: 31.1 | F97: 0 | G97: =Props("P","T",$A97+273.15,"Q",1,$B$48) -> 678.3102521 | H97: =Props("H","T",$F97+273.15,"P",G97,$B$48) -> 425.100572 | I97: =Props("D","T",$F97+273.15,"P",G97,$B$48) -> 25.11163986 | J97: =Props("S","T",$F97+273.15,"P",G97,$B$48) -> 1.839990375 | K97: =Props("P","T",$B97+273.15,"Q",1,$B$48) -> 3431.600955 | L97: =Props("H","P",K97,"S",J97,$B$48) -> 471.95886 | M97: 1.457292757 | N97: 0.5626612963 | O97: 4.458490192 | P97: 0.8691014019 | Q97: 5.059043328 | R97: 0.5443086922 | S97: -0.03261749865 | T97: 0.8584574745 | U97: -0.002103940741
A98: -5 | B98: 60 | C98: 6.45 | D98: 2.9 | E98: 30.3 | F98: 0 | G98: =Props("P","T",$A98+273.15,"Q",1,$B$48) -> 678.3102521 | H98: =Props("H","T",$F98+273.15,"P",G98,$B$48) -> 425.100572 | I98: =Props("D","T",$F98+273.15,"P",G98,$B$48) -> 25.11163986 | J98: =Props("S","T",$F98+273.15,"P",G98,$B$48) -> 1.839990375 | K98: =Props("P","T",$B98+273.15,"Q",1,$B$48) -> 3834.827699 | L98: =Props("H","P",K98,"S",J98,$B$48) -> 475.3346782 | M98: 1.52209342 | N98: 0.5248597998 | O98: 4.343802341 | P98: 0.8467450957 | Q98: 5.653501016 | R98: 0.5211715087 | S98: -0.007027193046 | T98: 0.8388998166 | U98: -0.001387685107
A99: -5 | B99: 65 | C99: 6.31 | D99: 3.24 | E99: 29.6 | F99: 0 | G99: =Props("P","T",$A99+273.15,"Q",1,$B$48) -> 678.3102521 | H99: =Props("H","T",$F99+273.15,"P",G99,$B$48) -> 425.100572 | I99: =Props("D","T",$F99+273.15,"P",G99,$B$48) -> 25.11163986 | J99: =Props("S","T",$F99+273.15,"P",G99,$B$48) -> 1.839990375 | K99: =Props("P","T",$B99+273.15,"Q",1,$B$48) -> 4276.34681 | L99: =Props("H","P",K99,"S",J99,$B$48) -> 478.6603497 | M99: 1.58536942 | N99: 0.4893115493 | O99: 4.243450472 | P99: 0.8271833278 | Q99: 6.304411288 | R99: 0.5051437091 | S99: 0.03235599041 | T99: 0.8174848686 | U99: -0.001538360805
A100: =$G$3 -> 0 | B100: =$A6 -> 25 | C100: =$G6 -> 8.73 | D100: =$G21 -> 1.27 | E100: =$G36 -> 39.6 | F100: 5 | G100: =Props("P","T",$A100+273.15,"Q",1,$B$48) -> 798.0829793 | H100: =Props("H","T",$F100+273.15,"P",G100,$B$48) -> 426.89472 | I100: =Props("D","T",$F100+273.15,"P",G100,$B$48) -> 29.52917235 | J100: =Props("S","T",$F100+273.15,"P",G100,$B$48) -> 1.830557473 | K100: =Props("P","T",$B100+273.15,"Q",1,$B$48) -> 1652.137797 | L100: =Props("H","P",K100,"S",J100,$B$48) -> 447.1987927 | M100: 0.8040412795 | N100: 0.6331033697 | O100: 4.827768226 | P100: 0.9410854241 | Q100: 2.070132856 | R100: 0.6567322211 | S100: 0.03732226445 | T100: 0.956792629 | U100: 0.007587534737
A101: 0 | B101: 30 | C101: 8.58 | D101: 1.44 | E101: 39.7 | F101: 5 | G101: =Props("P","T",$A101+273.15,"Q",1,$B$48) -> 798.0829793 | H101: =Props("H","T",$F101+273.15,"P",G101,$B$48) -> 426.89472 | I101: =Props("D","T",$F101+273.15,"P",G101,$B$48) -> 29.52917235 | J101: =Props("S","T",$F101+273.15,"P",G101,$B$48) -> 1.830557473 | K101: =Props("P","T",$B101+273.15,"Q",1,$B$48) -> 1883.408413 | L101: =Props("H","P",K101,"S",J101,$B$48) -> 450.9727334 | M101: 0.9558971351 | N101: 0.6638174549 | O101: 4.839959559 | P101: 0.9434619024 | Q101: 2.359915524 | R101: 0.6678283457 | S101: =(R113-N113)/N113 -> -0.02634845512 | T101: 0.9472587792 | U101: 0.0016089037
A102: 0 | B102: 35 | C102: 8.4 | D102: 1.63 | E102: 39.6 | F102: 5 | G102: =Props("P","T",$A102+273.15,"Q",1,$B$48) -> 798.0829793 | H102: =Props("H","T",$F102+273.15,"P",G102,$B$48) -> 426.89472 | I102: =Props("D","T",$F102+273.15,"P",G102,$B$48) -> 29.52917235 | J102: =Props("S","T",$F102+273.15,"P",G102,$B$48) -> 1.830557473 | K102: =Props("P","T",$B102+273.15,"Q",1,$B$48) -> 2138.327152 | L102: =Props("H","P",K102,"S",J102,$B$48) -> 454.6572342 | M102: 1.099395564 | N102: 0.6744758063 | O102: 4.827768226 | P102: 0.9410854241 | Q102: =K102/G102 -> 2.679329353 | R102: 0.6687187894 | S102: -0.008535542458 | T102: 0.9367500643 | U102: -0.001618076472
A103: 0 | B103: 40 | C103: 8.2 | D103: 1.84 | E103: 39.3 | F103: =$A103+$B$49 -> 5 | G103: =Props("P","T",$A103+273.15,"Q",1,$B$48) -> 798.0829793 | H103: =Props("H","T",$F103+273.15,"P",G103,$B$48) -> 426.89472 | I103: =Props("D","T",$F103+273.15,"P",G103,$B$48) -> 29.52917235 | J103: =Props("S","T",$F103+273.15,"P",G103,$B$48) -> 1.830557473 | K103: =Props("P","T",$B103+273.15,"Q",1,$B$48) -> 2418.608528 | L103: =Props("H","P",K103,"S",J103,$B$48) -> 458.2560599 | M103: =E103/1000*(L103-H103) -> 1.232500659 | N103: =M103/D103 -> 0.6698373145 | O103: =E103/1000/I103*3600 -> 4.791194224 | P103: 0.9339559891 | Q103: 3.030522628 | R103: 0.6594935612 | S103: =(R103-N103)/N103 -> -0.01544218726 | T103: 0.9251958055 | U103: -0.002890651083
A104: 0 | B104: 45 | C104: 7.99 | D104: 2.07 | E104: 38.9 | F104: 5 | G104: =Props("P","T",$A104+273.15,"Q",1,$B$48) -> 798.0829793 | H104: =Props("H","T",$F104+273.15,"P",G104,$B$48) -> 426.89472 | I104: =Props("D","T",$F104+273.15,"P",G104,$B$48) -> 29.52917235 | J104: =Props("S","T",$F104+273.15,"P",G104,$B$48) -> 1.830557473 | K104: =Props("P","T",$B104+273.15,"Q",1,$B$48) -> 2726.131032 | L104: =Props("H","P",K104,"S",J104,$B$48) -> 461.7736628 | M104: 1.356790878 | N104: 0.6554545306 | O104: 4.742428888 | P104: 0.9244500757 | Q104: 3.415849106 | R104: 0.6411649512 | S104: -0.02180102321 | T104: 0.9125185644 | U104: -0.003492985464
A105: 0 | B105: 50 | C105: 7.77 | D105: 2.32 | E105: 38.3 | F105: 5 | G105: =Props("P","T",$A105+273.15,"Q",1,$B$48) -> 798.0829793 | H105: =Props("H","T",$F105+273.15,"P",G105,$B$48) -> 426.89472 | I105: =Props("D","T",$F105+273.15,"P",G105,$B$48) -> 29.52917235 | J105: =Props("S","T",$F105+273.15,"P",G105,$B$48) -> 1.830557473 | K105: =Props("P","T",$B105+273.15,"Q",1,$B$48) -> 3062.99291 | L105: =Props("H","P",K105,"S",J105,$B$48) -> 465.2153423 | M105: 1.467679835 | N105: 0.6326206187 | O105: 4.669280885 | P105: 0.9101912056 | Q105: 3.837937895 | R105: 0.6157883027 | S105: -0.02660728323 | T105: 0.8986318433 | U105: -0.003011868006
A106: 0 | B106: 55 | C106: 7.54 | D106: 2.6 | E106: 37.6 | F106: 5 | G106: =Props("P","T",$A106+273.15,"Q",1,$B$48) -> 798.0829793 | H106: =Props("H","T",$F106+273.15,"P",G106,$B$48) -> 426.89472 | I106: =Props("D","T",$F106+273.15,"P",G106,$B$48) -> 29.52917235 | J106: =Props("S","T",$F106+273.15,"P",G106,$B$48) -> 1.830557473 | K106: =Props("P","T",$B106+273.15,"Q",1,$B$48) -> 3431.600955 | L106: =Props("H","P",K106,"S",J106,$B$48) -> 468.587528 | M106: 1.567649582 | N106: 0.6029421468 | O106: 4.583941547 | P106: 0.8935558572 | Q106: 4.299804712 | R106: 0.5864519468 | S106: -0.02734955596 | T106: 0.883436425 | U106: -0.002353463216
A107: 0 | B107: 60 | C107: 7.31 | D107: 2.92 | E107: 36.7 | F107: 5 | G107: =Props("P","T",$A107+273.15,"Q",1,$B$48) -> 798.0829793 | H107: =Props("H","T",$F107+273.15,"P",G107,$B$48) -> 426.89472 | I107: =Props("D","T",$F107+273.15,"P",G107,$B$48) -> 29.52917235 | J107: =Props("S","T",$F107+273.15,"P",G107,$B$48) -> 1.830557473 | K107: =Props("P","T",$B107+273.15,"Q",1,$B$48) -> 3834.827699 | L107: =Props("H","P",K107,"S",J107,$B$48) -> 471.8983448 | M107: 1.65163303 | N107: 0.5656277501 | O107: 4.474219542 | P107: 0.8721675521 | Q107: 4.805048847 | R107: 0.5570260254 | S107: -0.01520739517 | T107: 0.8668138929 | U107: -0.001114173726
A108: 0 | B108: 65 | C108: 7.09 | D108: 3.27 | E108: 35.8 | F108: 5 | G108: =Props("P","T",$A108+273.15,"Q",1,$B$48) -> 798.0829793 | H108: =Props("H","T",$F108+273.15,"P",G108,$B$48) -> 426.89472 | I108: =Props("D","T",$F108+273.15,"P",G108,$B$48) -> 29.52917235 | J108: =Props("S","T",$F108+273.15,"P",G108,$B$48) -> 1.830557473 | K108: =Props("P","T",$B108+273.15,"Q",1,$B$48) -> 4276.34681 | L108: =Props("H","P",K108,"S",J108,$B$48) -> 475.15898 | M108: 1.727860509 | N108: 0.5283977093 | O108: 4.364497537 | P108: 0.850779247 | Q108: 5.358273414 | R108: 0.531489547 | S108: 0.005851345844 | T108: 0.8486128047 | U108: -0.0004043172437
A109: 0 | B109: 68 | C109: 6.95 | D109: 3.5 | E109: 35.5 | F109: 5 | G109: =Props("P","T",$A109+273.15,"Q",1,$B$48) -> 798.0829793 | H109: =Props("H","T",$F109+273.15,"P",G109,$B$48) -> 426.89472 | I109: =Props("D","T",$F109+273.15,"P",G109,$B$48) -> 29.52917235 | J109: =Props("S","T",$F109+273.15,"P",G109,$B$48) -> 1.830557473 | K109: =Props("P","T",$B109+273.15,"Q",1,$B$48) -> 4561.77677 | L109: =Props("H","P",K109,"S",J109,$B$48) -> 477.0985052 | M109: 1.782234377 | N109: 0.5092098221 | O109: 4.327923536 | P109: 0.843649812 | Q109: 5.715917879 | R109: 0.5192709179 | S109: 0.01975825147 | T109: 0.8368463018 | U109: -0.001190274309
A110: =$H$3 -> 5 | B110: =$A7 -> 30 | C110: =$H7 -> 9.99 | D110: =$H22 -> 1.41 | E110: =$H37 -> 47.2 | F110: 10 | G110: =Props("P","T",$A110+273.15,"Q",1,$B$48) -> 933.1761684 | H110: =Props("H","T",$F110+273.15,"P",G110,$B$48) -> 428.5384888 | I110: =Props("D","T",$F110+273.15,"P",G110,$B$48) -> 34.57268749 | J110: =Props("S","T",$F110+273.15,"P",G110,$B$48) -> 1.821361804 | K110: =Props("P","T",$B110+273.15,"Q",1,$B$48) -> 1883.408413 | L110: =Props("H","P",K110,"S",J110,$B$48) -> 448.0284573 | M110: 0.919926513 | N110: 0.652430151 | O110: 4.914862348 | P110: 0.9580628359 | Q110: 2.018277445 | R110: 0.6535149182 | S110: 0.001662656337 | T110: 0.9584986721 | U110: 0.0002159446383
A111: 5 | B111: 35 | C111: 9.76 | D111: 1.61 | E111: 47.1 | F111: 10 | G111: =Props("P","T",$A111+273.15,"Q",1,$B$48) -> 933.1761684 | H111: =Props("H","T",$F111+273.15,"P",G111,$B$48) -> 428.5384888 | I111: =Props("D","T",$F111+273.15,"P",G111,$B$48) -> 34.57268749 | J111: =Props("S","T",$F111+273.15,"P",G111,$B$48) -> 1.821361804 | K111: =Props("P","T",$B111+273.15,"Q",1,$B$48) -> 2138.327152 | L111: =Props("H","P",K111,"S",J111,$B$48) -> 451.6483592 | M111: 1.088474895 | N111: 0.6760713633 | O111: 4.904449504 | P111: 0.9560330417 | Q111: 2.291450666 | R111: 0.6661875164 | S111: -0.01461953196 | T111: 0.9495112731 | U111: -0.002846130938
A112: 5 | B112: 40 | C112: 9.5 | D112: 1.82 | E112: 46.9 | F112: 10 | G112: =Props("P","T",$A112+273.15,"Q",1,$B$48) -> 933.1761684 | H112: =Props("H","T",$F112+273.15,"P",G112,$B$48) -> 428.5384888 | I112: =Props("D","T",$F112+273.15,"P",G112,$B$48) -> 34.57268749 | J112: =Props("S","T",$F112+273.15,"P",G112,$B$48) -> 1.821361804 | K112: =Props("P","T",$B112+273.15,"Q",1,$B$48) -> 2418.608528 | L112: =Props("H","P",K112,"S",J112,$B$48) -> 455.1829101 | M112: 1.249623359 | N112: 0.6866062411 | O112: 4.883623816 | P112: 0.9519734534 | Q112: 2.591802716 | R112: 0.6694861763 | S112: -0.02493432742 | T112: 0.9396296906 | U112: -0.004762616664
A113: 5 | B113: 45 | C113: 9.22 | D113: 2.05 | E113: 46.4 | F113: 10 | G113: =Props("P","T",$A113+273.15,"Q",1,$B$48) -> 933.1761684 | H113: =Props("H","T",$F113+273.15,"P",G113,$B$48) -> 428.5384888 | I113: =Props("D","T",$F113+273.15,"P",G113,$B$48) -> 34.57268749 | J113: =Props("S","T",$F113+273.15,"P",G113,$B$48) -> 1.821361804 | K113: =Props("P","T",$B113+273.15,"Q",1,$B$48) -> 2726.131032 | L113: =Props("H","P",K113,"S",J113,$B$48) -> 458.6365109 | M113: 1.396548225 | N113: 0.6812430365 | O113: 4.831559596 | P113: 0.9418244827 | Q113: 2.921346605 | R113: 0.6632933349 | S113: -0.02634845512 | T113: 0.9287876967 | U113: -0.004462594754
A114: 5 | B114: 50 | C114: 8.92 | D114: 2.31 | E114: 45.8 | F114: 10 | G114: =Props("P","T",$A114+273.15,"Q",1,$B$48) -> 933.1761684 | H114: =Props("H","T",$F114+273.15,"P",G114,$B$48) -> 428.5384888 | I114: =Props("D","T",$F114+273.15,"P",G114,$B$48) -> 34.57268749 | J114: =Props("S","T",$F114+273.15,"P",G114,$B$48) -> 1.821361804 | K114: =Props("P","T",$B114+273.15,"Q",1,$B$48) -> 3062.99291 | L114: =Props("H","P",K114,"S",J114,$B$48) -> 462.0144076 | M114: 1.533197078 | N114: 0.663721679 | O114: 4.769082533 | P114: 0.9296457179 | Q114: 3.282330832 | R114: 0.6482381862 | S114: -0.02332829153 | T114: 0.9169113156 | U114: -0.00387968273
A115: 5 | B115: 55 | C115: 8.61 | D115: 2.6 | E115: 45 | F115: 10 | G115: =Props("P","T",$A115+273.15,"Q",1,$B$48) -> 933.1761684 | H115: =Props("H","T",$F115+273.15,"P",G115,$B$48) -> 428.5384888 | I115: =Props("D","T",$F115+273.15,"P",G115,$B$48) -> 34.57268749 | J115: =Props("S","T",$F115+273.15,"P",G115,$B$48) -> 1.821361804 | K115: =Props("P","T",$B115+273.15,"Q",1,$B$48) -> 3431.600955 | L115: =Props("H","P",K115,"S",J115,$B$48) -> 465.3229705 | M115: 1.655301676 | N115: 0.6366544907 | O115: 4.685779781 | P115: 0.9134073647 | Q115: 3.677334539 | R115: 0.6258223474 | S115: -0.01701416309 | T115: 0.9039156937 | U115: -0.00258112797
A116: 5 | B116: 60 | C116: 8.29 | D116: 2.92 | E116: 44 | F116: 10 | G116: =Props("P","T",$A116+273.15,"Q",1,$B$48) -> 933.1761684 | H116: =Props("H","T",$F116+273.15,"P",G116,$B$48) -> 428.5384888 | I116: =Props("D","T",$F116+273.15,"P",G116,$B$48) -> 34.57268749 | J116: =Props("S","T",$F116+273.15,"P",G116,$B$48) -> 1.821361804 | K116: =Props("P","T",$B116+273.15,"Q",1,$B$48) -> 3834.827699 | L116: =Props("H","P",K116,"S",J116,$B$48) -> 468.5702486 | M116: 1.761397432 | N116: 0.6032182985 | O116: 4.581651341 | P116: 0.8931094233 | Q116: 4.109435956 | R116: 0.5984666252 | S116: -0.007877203664 | T116: 0.8896995571 | U116: -0.0008297650208
A117: 5 | B117: 65 | C117: 7.98 | D117: 3.28 | E117: 43.1 | F117: 10 | G117: =Props("P","T",$A117+273.15,"Q",1,$B$48) -> 933.1761684 | H117: =Props("H","T",$F117+273.15,"P",G117,$B$48) -> 428.5384888 | I117: =Props("D","T",$F117+273.15,"P",G117,$B$48) -> 34.57268749 | J117: =Props("S","T",$F117+273.15,"P",G117,$B$48) -> 1.821361804 | K117: =Props("P","T",$B117+273.15,"Q",1,$B$48) -> 4276.34681 | L117: =Props("H","P",K117,"S",J117,$B$48) -> 471.7673103 | M117: 1.863162204 | N117: 0.5680372573 | O117: 4.487935746 | P117: 0.874841276 | Q117: 4.582571817 | R117: 0.569404648 | S117: 0.002407220075 | T117: 0.8741333872 | U117: -0.0001544741247
A118: 5 | B118: 68 | C118: 7.78 | D118: 3.51 | E118: 42.7 | F118: 10 | G118: =Props("P","T",$A118+273.15,"Q",1,$B$48) -> 933.1761684 | H118: =Props("H","T",$F118+273.15,"P",G118,$B$48) -> 428.5384888 | I118: =Props("D","T",$F118+273.15,"P",G118,$B$48) -> 34.57268749 | J118: =Props("S","T",$F118+273.15,"P",G118,$B$48) -> 1.821361804 | K118: =Props("P","T",$B118+273.15,"Q",1,$B$48) -> 4561.77677 | L118: =Props("H","P",K118,"S",J118,$B$48) -> 473.6685805 | M118: 1.927054914 | N118: 0.5490184941 | O118: 4.44628437 | P118: 0.8667220994 | Q118: 4.888441137 | R118: 0.5526736617 | S118: 0.006657640218 | T118: 0.8640702866 | U118: -0.000542465942
A119: =$I$3 -> 7 | B119: =$A7 -> 30 | C119: =$I7 -> 10.6 | D119: =$I22 -> 1.4 | E119: =$I37 -> 50.5 | F119: 12 | G119: =Props("P","T",$A119+273.15,"Q",1,$B$48) -> 991.7767331 | H119: =Props("H","T",$F119+273.15,"P",G119,$B$48) -> 429.1502613 | I119: =Props("D","T",$F119+273.15,"P",G119,$B$48) -> 36.78312131 | J119: =Props("S","T",$F119+273.15,"P",G119,$B$48) -> 1.817732378 | K119: =Props("P","T",$B119+273.15,"Q",1,$B$48) -> 1883.408413 | L119: =Props("H","P",K119,"S",J119,$B$48) -> 446.872403 | M119: 0.8949681543 | N119: 0.6392629674 | O119: 4.942484311 | P119: 0.9634472342 | Q119: 1.899024599 | R119: 0.64452688 | S119: 0.00823434626 | T119: 0.9624220907 | U119: -0.0005398263272
A120: 7 | B120: 35 | C120: 10.35 | D120: 1.59 | E120: 50.4 | F120: 12 | G120: =Props("P","T",$A120+273.15,"Q",1,$B$48) -> 991.7767331 | H120: =Props("H","T",$F120+273.15,"P",G120,$B$48) -> 429.1502613 | I120: =Props("D","T",$F120+273.15,"P",G120,$B$48) -> 36.78312131 | J120: =Props("S","T",$F120+273.15,"P",G120,$B$48) -> 1.817732378 | K120: =Props("P","T",$B120+273.15,"Q",1,$B$48) -> 2138.327152 | L120: =Props("H","P",K120,"S",J120,$B$48) -> 450.4667882 | M120: 1.074352959 | N120: 0.6756936848 | O120: 4.932697214 | P120: 0.9615394179 | Q120: 2.156056984 | R120: 0.6611973306 | S120: -0.02145403245 | T120: 0.9539657252 | U120: -0.003512751615
A121: 7 | B121: 40 | C121: 10.05 | D121: 1.81 | E121: 50.2 | F121: 12 | G121: =Props("P","T",$A121+273.15,"Q",1,$B$48) -> 991.7767331 | H121: =Props("H","T",$F121+273.15,"P",G121,$B$48) -> 429.1502613 | I121: =Props("D","T",$F121+273.15,"P",G121,$B$48) -> 36.78312131 | J121: =Props("S","T",$F121+273.15,"P",G121,$B$48) -> 1.817732378 | K121: =Props("P","T",$B121+273.15,"Q",1,$B$48) -> 2418.608528 | L121: =Props("H","P",K121,"S",J121,$B$48) -> 453.9759419 | M121: 1.246249167 | N121: 0.6885354514 | O121: 4.913123018 | P121: 0.9577237853 | Q121: 2.438662299 | R121: =-0.0014273*Q121^4 + 0.0300406*Q121^3 - 0.223623*Q121^2 + 0.6484648*Q121 + 0.0323579 -> 0.6690377327 | S121: -0.02831766855 | T121: =-0.0329*Q121 + 1.0249 -> 0.9446680104 | U121: =(T121-P121)/Q121 -> -0.005353662497
A122: 7 | B122: 45 | C122: 9.75 | D122: 2.05 | E122: 49.7 | F122: 12 | G122: =Props("P","T",$A122+273.15,"Q",1,$B$48) -> 991.7767331 | H122: =Props("H","T",$F122+273.15,"P",G122,$B$48) -> 429.1502613 | I122: =Props("D","T",$F122+273.15,"P",G122,$B$48) -> 36.78312131 | J122: =Props("S","T",$F122+273.15,"P",G122,$B$48) -> 1.817732378 | K122: =Props("P","T",$B122+273.15,"Q",1,$B$48) -> 2726.131032 | L122: =Props("H","P",K122,"S",J122,$B$48) -> 457.4042459 | M122: 1.404223035 | N122: 0.6849868465 | O122: 4.86418753 | P122: 0.9481847037 | Q122: 2.74873461 | R122: 0.6676320049 | S122: -0.02533602165 | T122: 0.9344666313 | U122: -0.004990686387
A123: 7 | B123: 50 | C123: 9.42 | D123: 2.31 | E123: 49.1 | F123: 12 | G123: =Props("P","T",$A123+273.15,"Q",1,$B$48) -> 991.7767331 | H123: =Props("H","T",$F123+273.15,"P",G123,$B$48) -> 429.1502613 | I123: =Props("D","T",$F123+273.15,"P",G123,$B$48) -> 36.78312131 | J123: =Props("S","T",$F123+273.15,"P",G123,$B$48) -> 1.817732378 | K123: =Props("P","T",$B123+273.15,"Q",1,$B$48) -> 3062.99291 | L123: =Props("H","P",K123,"S",J123,$B$48) -> 460.7569268 | M123: 1.551887278 | N123: 0.6718126745 | O123: 4.805464944 | P123: 0.9367378059 | Q123: 3.088389561 | R123: 0.6571912703 | S123: -0.02176410898 | T123: 0.9232919834 | U123: -0.004353667889
A124: 7 | B124: 55 | C124: 9.08 | D124: 2.6 | E124: 48.2 | F124: 12 | G124: =Props("P","T",$A124+273.15,"Q",1,$B$48) -> 991.7767331 | H124: =Props("H","T",$F124+273.15,"P",G124,$B$48) -> 429.1502613 | I124: =Props("D","T",$F124+273.15,"P",G124,$B$48) -> 36.78312131 | J124: =Props("S","T",$F124+273.15,"P",G124,$B$48) -> 1.817732378 | K124: =Props("P","T",$B124+273.15,"Q",1,$B$48) -> 3431.600955 | L124: =Props("H","P",K124,"S",J124,$B$48) -> 464.0403334 | M124: 1.681701475 | N124: 0.6468082595 | O124: 4.717381065 | P124: =O124/$B$51 -> 0.9195674592 | Q124: 3.460053901 | R124: 0.6386922499 | S124: -0.01254778295 | T124: 0.9110642266 | U124: -0.002457543365
A125: 7 | B125: 60 | C125: 8.73 | D125: 2.92 | E125: 47.3 | F125: 12 | G125: =Props("P","T",$A125+273.15,"Q",1,$B$48) -> 991.7767331 | H125: =Props("H","T",$F125+273.15,"P",G125,$B$48) -> 429.1502613 | I125: =Props("D","T",$F125+273.15,"P",G125,$B$48) -> 36.78312131 | J125: =Props("S","T",$F125+273.15,"P",G125,$B$48) -> 1.817732378 | K125: =Props("P","T",$B125+273.15,"Q",1,$B$48) -> 3834.827699 | L125: =Props("H","P",K125,"S",J125,$B$48) -> 467.2624863 | M125: 1.802708244 | N125: 0.6173658369 | O125: 4.629297187 | P125: 0.9023971124 | Q125: 3.86662398 | R125: 0.613968994 | S125: -0.005502155692 | T125: 0.8976880711 | U125: -0.001217868967
A126: 7 | B126: 65 | C126: 8.37 | D126: 3.28 | E126: 46.3 | F126: 12 | G126: =Props("P","T",$A126+273.15,"Q",1,$B$48) -> 991.7767331 | H126: =Props("H","T",$F126+273.15,"P",G126,$B$48) -> 429.1502613 | I126: =Props("D","T",$F126+273.15,"P",G126,$B$48) -> 36.78312131 | J126: =Props("S","T",$F126+273.15,"P",G126,$B$48) -> 1.817732378 | K126: =Props("P","T",$B126+273.15,"Q",1,$B$48) -> 4276.34681 | L126: =Props("H","P",K126,"S",J126,$B$48) -> 470.434409 | M126: 1.911456037 | N126: 0.5827609869 | O126: 4.53142621 | P126: 0.8833189494 | Q126: 4.311803924 | R126: 0.5857056313 | S126: 0.005052919744 | T126: 0.8830416509 | U126: -6.431147343e-05
A127: 7 | B127: 68 | C127: 8.15 | D127: 3.52 | E127: 46 | F127: 12 | G127: =Props("P","T",$A127+273.15,"Q",1,$B$48) -> 991.7767331 | H127: =Props("H","T",$F127+273.15,"P",G127,$B$48) -> 429.1502613 | I127: =Props("D","T",$F127+273.15,"P",G127,$B$48) -> 36.78312131 | J127: =Props("S","T",$F127+273.15,"P",G127,$B$48) -> 1.817732378 | K127: =Props("P","T",$B127+273.15,"Q",1,$B$48) -> 4561.77677 | L127: =Props("H","P",K127,"S",J127,$B$48) -> 472.3205529 | M127: 1.985833414 | N127: 0.5641572199 | O127: 4.502064917 | P127: 0.8775955004 | Q127: 4.599600513 | R127: 0.5684208588 | S127: 0.007557536715 | T127: 0.8735731431 | U127: -0.0008745014468
A128: =$J$3 -> 10 | B128: =$A7 -> 30 | C128: =$J7 -> 11.6 | D128: =$J22 -> 1.37 | E128: =$J37 -> 55.8 | F128: 15 | G128: =Props("P","T",$A128+273.15,"Q",1,$B$48) -> 1084.818447 | H128: =Props("H","T",$F128+273.15,"P",G128,$B$48) -> 430.0153049 | I128: =Props("D","T",$F128+273.15,"P",G128,$B$48) -> 40.32342096 | J128: =Props("S","T",$F128+273.15,"P",G128,$B$48) -> 1.812324407 | K128: =Props("P","T",$B128+273.15,"Q",1,$B$48) -> 1883.408413 | L128: =Props("H","P",K128,"S",J128,$B$48) -> 445.156049 | M128: 0.8448535239 | N128: 0.6166814043 | O128: 4.981720182 | P128: 0.9710955521 | Q128: =K128/G128 -> 1.736150799 | R128: 0.6283806477 | S128: 0.01897129264 | T128: 0.9677806387 | U128: -0.001909346461
A129: 10 | B129: 35 | C129: 11.3 | D129: 1.57 | E129: 55.7 | F129: 15 | G129: =Props("P","T",$A129+273.15,"Q",1,$B$48) -> 1084.818447 | H129: =Props("H","T",$F129+273.15,"P",G129,$B$48) -> 430.0153049 | I129: =Props("D","T",$F129+273.15,"P",G129,$B$48) -> 40.32342096 | J129: =Props("S","T",$F129+273.15,"P",G129,$B$48) -> 1.812324407 | K129: =Props("P","T",$B129+273.15,"Q",1,$B$48) -> 2138.327152 | L129: =Props("H","P",K129,"S",J129,$B$48) -> 448.7123928 | M129: 1.041427796 | N129: 0.6633298063 | O129: 4.972792368 | P129: 0.9693552375 | Q129: 1.971138267 | R129: 0.650233087 | S129: -0.01974390299 | T129: 0.960049551 | U129: -0.004720970933
A130: 10 | B130: 40 | C130: 11 | D130: 1.79 | E130: 55.5 | F130: 15 | G130: =Props("P","T",$A130+273.15,"Q",1,$B$48) -> 1084.818447 | H130: =Props("H","T",$F130+273.15,"P",G130,$B$48) -> 430.0153049 | I130: =Props("D","T",$F130+273.15,"P",G130,$B$48) -> 40.32342096 | J130: =Props("S","T",$F130+273.15,"P",G130,$B$48) -> 1.812324407 | K130: =Props("P","T",$B130+273.15,"Q",1,$B$48) -> 2418.608528 | L130: =Props("H","P",K130,"S",J130,$B$48) -> 452.1836733 | M130: 1.23034445 | N130: 0.6873432681 | O130: 4.95493674 | P130: 0.9658746083 | Q130: 2.229505348 | R130: 0.66420228 | S130: -0.03366729441 | T130: 0.9515492741 | U130: -0.006425341938
A131: 10 | B131: 45 | C131: 10.6 | D131: 2.03 | E131: 55 | F131: 15 | G131: =Props("P","T",$A131+273.15,"Q",1,$B$48) -> 1084.818447 | H131: =Props("H","T",$F131+273.15,"P",G131,$B$48) -> 430.0153049 | I131: =Props("D","T",$F131+273.15,"P",G131,$B$48) -> 40.32342096 | J131: =Props("S","T",$F131+273.15,"P",G131,$B$48) -> 1.812324407 | K131: =Props("P","T",$B131+273.15,"Q",1,$B$48) -> 2726.131032 | L131: =Props("H","P",K131,"S",J131,$B$48) -> 455.5742462 | M131: 1.405741776 | N131: 0.6924836334 | O131: 4.910297671 | P131: 0.9571730352 | Q131: 2.512983661 | R131: 0.6695551043 | S131: -0.03311057189 | T131: 0.9422228375 | U131: -0.005949182205
A132: 10 | B132: 50 | C132: 10.25 | D132: 2.29 | E132: 54.3 | F132: 15 | G132: =Props("P","T",$A132+273.15,"Q",1,$B$48) -> 1084.818447 | H132: =Props("H","T",$F132+273.15,"P",G132,$B$48) -> 430.0153049 | I132: =Props("D","T",$F132+273.15,"P",G132,$B$48) -> 40.32342096 | J132: =Props("S","T",$F132+273.15,"P",G132,$B$48) -> 1.812324407 | K132: =Props("P","T",$B132+273.15,"Q",1,$B$48) -> 3062.99291 | L132: =Props("H","P",K132,"S",J132,$B$48) -> 458.889311 | M132: 1.567858531 | N132: 0.6846543805 | O132: 4.847802973 | P132: 0.944990833 | Q132: 2.823507398 | R132: 0.6660241633 | S132: -0.02721112681 | T132: 0.9320066066 | U132: -0.004598616021
A133: 10 | B133: 55 | C133: 9.83 | D133: 2.59 | E133: 53.5 | F133: 15 | G133: =Props("P","T",$A133+273.15,"Q",1,$B$48) -> 1084.818447 | H133: =Props("H","T",$F133+273.15,"P",G133,$B$48) -> 430.0153049 | I133: =Props("D","T",$F133+273.15,"P",G133,$B$48) -> 40.32342096 | J133: =Props("S","T",$F133+273.15,"P",G133,$B$48) -> 1.812324407 | K133: =Props("P","T",$B133+273.15,"Q",1,$B$48) -> 3431.600955 | L133: =Props("H","P",K133,"S",J133,$B$48) -> 462.1351857 | M133: 1.718413625 | N133: 0.6634801643 | O133: 4.776380461 | P133: 0.9310683161 | Q133: 3.163295172 | R133: 0.653944843 | S133: -0.01437167492 | T133: 0.9208275888 | U133: -0.003237360629
A134: 10 | B134: 60 | C134: 9.42 | D134: 2.92 | E134: 52.5 | F134: 15 | G134: =Props("P","T",$A134+273.15,"Q",1,$B$48) -> 1084.818447 | H134: =Props("H","T",$F134+273.15,"P",G134,$B$48) -> 430.0153049 | I134: =Props("D","T",$F134+273.15,"P",G134,$B$48) -> 40.32342096 | J134: =Props("S","T",$F134+273.15,"P",G134,$B$48) -> 1.812324407 | K134: =Props("P","T",$B134+273.15,"Q",1,$B$48) -> 3834.827699 | L134: =Props("H","P",K134,"S",J134,$B$48) -> 465.3198514 | M134: 1.853488693 | N134: 0.6347564017 | O134: 4.687102322 | P134: 0.91366517 | Q134: 3.534994922 | R134: 0.6343751303 | S134: -0.0006006578215 | T134: 0.9085986671 | U134: -0.001433241919
A135: 10 | B135: 65 | C135: 9 | D135: 3.28 | E135: 51.5 | F135: 15 | G135: =Props("P","T",$A135+273.15,"Q",1,$B$48) -> 1084.818447 | H135: =Props("H","T",$F135+273.15,"P",G135,$B$48) -> 430.0153049 | I135: =Props("D","T",$F135+273.15,"P",G135,$B$48) -> 40.32342096 | J135: =Props("S","T",$F135+273.15,"P",G135,$B$48) -> 1.812324407 | K135: =Props("P","T",$B135+273.15,"Q",1,$B$48) -> 4276.34681 | L135: =Props("H","P",K135,"S",J135,$B$48) -> 468.4542665 | M135: 1.979606523 | N135: 0.603538574 | O135: 4.597824183 | P135: 0.8962620239 | Q135: 3.941993081 | R135: 0.609166827 | S135: 0.009325423915 | T135: 0.8952084276 | U135: -0.0002672750106
A136: 10 | B136: 68 | C136: 8.74 | D136: 3.52 | E136: 51.2 | F136: 15 | G136: =Props("P","T",$A136+273.15,"Q",1,$B$48) -> 1084.818447 | H136: =Props("H","T",$F136+273.15,"P",G136,$B$48) -> 430.0153049 | I136: =Props("D","T",$F136+273.15,"P",G136,$B$48) -> 40.32342096 | J136: =Props("S","T",$F136+273.15,"P",G136,$B$48) -> 1.812324407 | K136: =Props("P","T",$B136+273.15,"Q",1,$B$48) -> 4561.77677 | L136: =Props("H","P",K136,"S",J136,$B$48) -> 470.3178431 | M136: 2.063489956 | N136: 0.5862187374 | O136: 4.571040741 | P136: 0.8910410801 | Q136: 4.205106195 | R136: 0.5923933161 | S136: 0.01053289201 | T136: 0.8865520062 | U136: -0.001067529255
A137: =$K$3 -> 12.5 | B137: =$A8 -> 35 | C137: =$K8 -> 12.15 | D137: =$K23 -> 1.55 | E137: =$K38 -> 60.4 | F137: 17.5 | G137: =Props("P","T",$A137+273.15,"Q",1,$B$48) -> 1167.243239 | H137: =Props("H","T",$F137+273.15,"P",G137,$B$48) -> 430.6852124 | I137: =Props("D","T",$F137+273.15,"P",G137,$B$48) -> 43.49320229 | J137: =Props("S","T",$F137+273.15,"P",G137,$B$48) -> 1.80783944 | K137: =Props("P","T",$B137+273.15,"Q",1,$B$48) -> 2138.327152 | L137: =Props("H","P",K137,"S",J137,$B$48) -> 447.2629671 | M137: 1.001296386 | N137: 0.6459976687 | O137: 4.999401942 | P137: 0.9745422889 | Q137: 1.831946488 | R137: 0.6384416264 | S137: -0.01169670204 | T137: 0.9646289605 | U137: -0.005411363521
A138: 12.5 | B138: 40 | C138: 11.8 | D138: 1.77 | E138: 60.2 | F138: 17.5 | G138: =Props("P","T",$A138+273.15,"Q",1,$B$48) -> 1167.243239 | H138: =Props("H","T",$F138+273.15,"P",G138,$B$48) -> 430.6852124 | I138: =Props("D","T",$F138+273.15,"P",G138,$B$48) -> 43.49320229 | J138: =Props("S","T",$F138+273.15,"P",G138,$B$48) -> 1.80783944 | K138: =Props("P","T",$B138+273.15,"Q",1,$B$48) -> 2418.608528 | L138: =Props("H","P",K138,"S",J138,$B$48) -> 450.7028111 | M138: 1.205059441 | N138: 0.6808245429 | O138: 4.982847631 | P138: 0.9713153277 | Q138: 2.072068998 | R138: 0.6568445696 | S138: -0.03522195779 | T138: 0.95672893 | U138: -0.007039532831
A139: 12.5 | B139: 45 | C139: 11.4 | D139: 2.01 | E139: 59.7 | F139: 17.5 | G139: =Props("P","T",$A139+273.15,"Q",1,$B$48) -> 1167.243239 | H139: =Props("H","T",$F139+273.15,"P",G139,$B$48) -> 430.6852124 | I139: =Props("D","T",$F139+273.15,"P",G139,$B$48) -> 43.49320229 | J139: =Props("S","T",$F139+273.15,"P",G139,$B$48) -> 1.80783944 | K139: =Props("P","T",$B139+273.15,"Q",1,$B$48) -> 2726.131032 | L139: =Props("H","P",K139,"S",J139,$B$48) -> 454.062058 | M139: 1.395597683 | N139: 0.6943272054 | O139: 4.941461853 | P139: 0.9632479247 | Q139: 2.335529512 | R139: 0.6673086035 | S139: -0.03891335625 | T139: 0.9480610791 | U139: -0.006502527807
A140: 12.5 | B140: 50 | C140: 10.95 | D140: 2.28 | E140: 59 | F140: 17.5 | G140: =Props("P","T",$A140+273.15,"Q",1,$B$48) -> 1167.243239 | H140: =Props("H","T",$F140+273.15,"P",G140,$B$48) -> 430.6852124 | I140: =Props("D","T",$F140+273.15,"P",G140,$B$48) -> 43.49320229 | J140: =Props("S","T",$F140+273.15,"P",G140,$B$48) -> 1.80783944 | K140: =Props("P","T",$B140+273.15,"Q",1,$B$48) -> 3062.99291 | L140: =Props("H","P",K140,"S",J140,$B$48) -> 457.3458865 | M140: 1.572979776 | N140: 0.6899034104 | O140: 4.883521765 | P140: 0.9519535604 | Q140: 2.624125639 | R140: 0.6692844403 | S140: -0.02988674898 | T140: 0.9385662665 | U140: -0.005101620783
A141: 12.5 | B141: 55 | C141: 10.5 | D141: 2.58 | E141: 58.2 | F141: 17.5 | G141: =Props("P","T",$A141+273.15,"Q",1,$B$48) -> 1167.243239 | H141: =Props("H","T",$F141+273.15,"P",G141,$B$48) -> 430.6852124 | I141: =Props("D","T",$F141+273.15,"P",G141,$B$48) -> 43.49320229 | J141: =Props("S","T",$F141+273.15,"P",G141,$B$48) -> 1.80783944 | K141: =Props("P","T",$B141+273.15,"Q",1,$B$48) -> 3431.600955 | L141: =Props("H","P",K141,"S",J141,$B$48) -> 460.5605915 | M141: 1.738747065 | N141: 0.673932971 | O141: 4.81730452 | P141: 0.9390457155 | Q141: 2.939919325 | R141: 0.6627003472 | S141: -0.0166672715 | T141: 0.9281766542 | U141: -0.003697061071
A142: 12.5 | B142: 60 | C142: 10.05 | D142: 2.91 | E142: 57.1 | F142: 17.5 | G142: =Props("P","T",$A142+273.15,"Q",1,$B$48) -> 1167.243239 | H142: =Props("H","T",$F142+273.15,"P",G142,$B$48) -> 430.6852124 | I142: =Props("D","T",$F142+273.15,"P",G142,$B$48) -> 43.49320229 | J142: =Props("S","T",$F142+273.15,"P",G142,$B$48) -> 1.80783944 | K142: =Props("P","T",$B142+273.15,"Q",1,$B$48) -> 3834.827699 | L142: =Props("H","P",K142,"S",J142,$B$48) -> 463.7141227 | M142: 1.885950778 | N142: 0.6480930508 | O142: 4.72625581 | P142: 0.9212974288 | Q142: 3.285371525 | R142: 0.6480844666 | S142: -1.324528346e-05 | T142: 0.9168112768 | U142: -0.001365493038
A143: 12.5 | B143: 65 | C143: 9.57 | D143: 3.27 | E143: 56.2 | F143: 17.5 | G143: =Props("P","T",$A143+273.15,"Q",1,$B$48) -> 1167.243239 | H143: =Props("H","T",$F143+273.15,"P",G143,$B$48) -> 430.6852124 | I143: =Props("D","T",$F143+273.15,"P",G143,$B$48) -> 43.49320229 | J143: =Props("S","T",$F143+273.15,"P",G143,$B$48) -> 1.80783944 | K143: =Props("P","T",$B143+273.15,"Q",1,$B$48) -> 4276.34681 | L143: =Props("H","P",K143,"S",J143,$B$48) -> 466.8173868 | M143: 2.030628203 | N143: 0.6209872181 | O143: 4.65176141 | P143: 0.9067761033 | Q143: 3.66362954 | R143: 0.626662528 | S143: 0.009139173376 | T143: 0.9043665881 | U143: -0.0006576852593
A144: =$L$3 -> 15 | B144: =$A8 -> 35 | C144: =$L8 -> 13.05 | D144: =$L23 -> 1.53 | E144: =$L38 -> 65.5 | F144: 20 | G144: =Props("P","T",$A144+273.15,"Q",1,$B$48) -> 1254.289547 | H144: =Props("H","T",$F144+273.15,"P",G144,$B$48) -> 431.3059228 | I144: =Props("D","T",$F144+273.15,"P",G144,$B$48) -> 46.87695864 | J144: =Props("S","T",$F144+273.15,"P",G144,$B$48) -> 1.80336268 | K144: =Props("P","T",$B144+273.15,"Q",1,$B$48) -> 2138.327152 | L144: =Props("H","P",K144,"S",J144,$B$48) -> 445.8211266 | M144: 0.9507458504 | N144: 0.6214025166 | O144: 5.030189817 | P144: 0.9805438239 | Q144: 1.704811427 | R144: 0.6247239189 | S144: 0.005345009381 | T144: 0.968811704 | U144: -0.006881769855
A145: 15 | B145: 40 | C145: 12.65 | D145: 1.75 | E145: 65.2 | F145: 20 | G145: =Props("P","T",$A145+273.15,"Q",1,$B$48) -> 1254.289547 | H145: =Props("H","T",$F145+273.15,"P",G145,$B$48) -> 431.3059228 | I145: =Props("D","T",$F145+273.15,"P",G145,$B$48) -> 46.87695864 | J145: =Props("S","T",$F145+273.15,"P",G145,$B$48) -> 1.80336268 | K145: =Props("P","T",$B145+273.15,"Q",1,$B$48) -> 2418.608528 | L145: =Props("H","P",K145,"S",J145,$B$48) -> 449.2295666 | M145: 1.168621578 | N145: 0.6677837587 | O145: 5.007150779 | P145: 0.9760527835 | Q145: 1.9282697 | R145: 0.6469430719 | S145: -0.03120873568 | T145: 0.9614599269 | U145: -0.007567850414
A146: 15 | B146: 45 | C146: 12.2 | D146: 1.99 | E146: 64.7 | F146: 20 | G146: =Props("P","T",$A146+273.15,"Q",1,$B$48) -> 1254.289547 | H146: =Props("H","T",$F146+273.15,"P",G146,$B$48) -> 431.3059228 | I146: =Props("D","T",$F146+273.15,"P",G146,$B$48) -> 46.87695864 | J146: =Props("S","T",$F146+273.15,"P",G146,$B$48) -> 1.80336268 | K146: =Props("P","T",$B146+273.15,"Q",1,$B$48) -> 2726.131032 | L146: =Props("H","P",K146,"S",J146,$B$48) -> 452.5575134 | M146: 1.374977915 | N146: 0.6909436757 | O146: 4.968752384 | P146: 0.9685677162 | Q146: 2.173446346 | R146: 0.6619745957 | S146: -0.04192683277 | T146: 0.9533936152 | U146: -0.006981585242
A147: 15 | B147: 50 | C147: 11.75 | D147: 2.26 | E147: 64 | F147: 20 | G147: =Props("P","T",$A147+273.15,"Q",1,$B$48) -> 1254.289547 | H147: =Props("H","T",$F147+273.15,"P",G147,$B$48) -> 431.3059228 | I147: =Props("D","T",$F147+273.15,"P",G147,$B$48) -> 46.87695864 | J147: =Props("S","T",$F147+273.15,"P",G147,$B$48) -> 1.80336268 | K147: =Props("P","T",$B147+273.15,"Q",1,$B$48) -> 3062.99291 | L147: =Props("H","P",K147,"S",J147,$B$48) -> 455.8101265 | M147: 1.56826904 | N147: 0.6939243541 | O147: 4.91499463 | P147: 0.9580886219 | Q147: 2.44201422 | R147: 0.6690738008 | S147: -0.03581161715 | T147: 0.9445577321 | U147: -0.00554087261
A148: 15 | B148: 55 | C148: 11.25 | D148: 2.56 | E148: 63.2 | F148: 20 | G148: =Props("P","T",$A148+273.15,"Q",1,$B$48) -> 1254.289547 | H148: =Props("H","T",$F148+273.15,"P",G148,$B$48) -> 431.3059228 | I148: =Props("D","T",$F148+273.15,"P",G148,$B$48) -> 46.87695864 | J148: =Props("S","T",$F148+273.15,"P",G148,$B$48) -> 1.80336268 | K148: =Props("P","T",$B148+273.15,"Q",1,$B$48) -> 3431.600955 | L148: =Props("H","P",K148,"S",J148,$B$48) -> 458.993679 | M148: 1.749866196 | N148: 0.6835414829 | O148: 4.853557197 | P148: 0.9461125141 | Q148: =K148/G148 -> 2.735892174 | R148: 0.6678634585 | S148: -0.02293646376 | T148: 0.9348891475 | U148: -0.00410226935
A149: 15 | B149: 60 | C149: 10.7 | D149: 2.89 | E149: 62.2 | F149: =$A149+$B$49 -> 20 | G149: =Props("P","T",$A149+273.15,"Q",1,$B$48) -> 1254.289547 | H149: =Props("H","T",$F149+273.15,"P",G149,$B$48) -> 431.3059228 | I149: =Props("D","T",$F149+273.15,"P",G149,$B$48) -> 46.87695864 | J149: =Props("S","T",$F149+273.15,"P",G149,$B$48) -> 1.80336268 | K149: =Props("P","T",$B149+273.15,"Q",1,$B$48) -> 3834.827699 | L149: =Props("H","P",K149,"S",J149,$B$48) -> 462.1160916 | M149: =E149/1000*(L149-H149) -> 1.916392499 | N149: =M149/D149 -> 0.6631115915 | O149: =E149/1000/I149*3600 -> 4.776760406 | P149: 0.9311423794 | Q149: 3.057370373 | R149: 0.6584487882 | S149: -0.007031702173 | T149: 0.9243125147 | U149: -0.002233901624
A150: 15 | B150: 65 | C150: 10.15 | D150: 3.26 | E150: 61.2 | F150: 20 | G150: =Props("P","T",$A150+273.15,"Q",1,$B$48) -> 1254.289547 | H150: =Props("H","T",$F150+273.15,"P",G150,$B$48) -> 431.3059228 | I150: =Props("D","T",$F150+273.15,"P",G150,$B$48) -> 46.87695864 | J150: =Props("S","T",$F150+273.15,"P",G150,$B$48) -> 1.80336268 | K150: =Props("P","T",$B150+273.15,"Q",1,$B$48) -> 4276.34681 | L150: =Props("H","P",K150,"S",J150,$B$48) -> 465.1882213 | M150: 2.073596668 | N150: 0.6360725975 | O150: 4.699963615 | P150: 0.9161722446 | Q150: 3.4093777 | R150: 0.6415219247 | S150: 0.00856714653 | T150: 0.9127314737 | U150: -0.001009207922
A151: =$M$3 -> 20 | B151: =$A8 -> 35 | C151: =$M8 -> 15.05 | D151: =$M23 -> 1.47 | E151: =$M38 -> 76.5 | F151: 25 | G151: =Props("P","T",$A151+273.15,"Q",1,$B$48) -> 1442.927359 | H151: =Props("H","T",$F151+273.15,"P",G151,$B$48) -> 432.3877705 | I151: =Props("D","T",$F151+273.15,"P",G151,$B$48) -> 54.347304 | J151: =Props("S","T",$F151+273.15,"P",G151,$B$48) -> 1.794388418 | K151: =Props("P","T",$B151+273.15,"Q",1,$B$48) -> 2138.327152 | L151: =Props("H","P",K151,"S",J151,$B$48) -> 442.9453165 | M151: 0.8076522648 | N151: 0.5494233094 | O151: 5.067408679 | P151: 0.9877989628 | Q151: 1.4819368 | R151: 0.5931193938 | S151: 0.07953081659 | T151: 0.9761442793 | U151: -0.007864494332
A152: 20 | B152: 40 | C152: 14.55 | D152: 1.69 | E152: 76 | F152: 25 | G152: =Props("P","T",$A152+273.15,"Q",1,$B$48) -> 1442.927359 | H152: =Props("H","T",$F152+273.15,"P",G152,$B$48) -> 432.3877705 | I152: =Props("D","T",$F152+273.15,"P",G152,$B$48) -> 54.347304 | J152: =Props("S","T",$F152+273.15,"P",G152,$B$48) -> 1.794388418 | K152: =Props("P","T",$B152+273.15,"Q",1,$B$48) -> 2418.608528 | L152: =Props("H","P",K152,"S",J152,$B$48) -> 446.2907288 | M152: 1.05662483 | N152: 0.6252217931 | O152: 5.034288361 | P152: 0.9813427605 | Q152: 1.676181766 | R152: 0.6212205706 | S152: -0.006399684848 | T152: 0.9697536199 | U152: -0.006914011837
A153: 20 | B153: 45 | C153: 14 | D153: 1.94 | E153: 76 | F153: 25 | G153: =Props("P","T",$A153+273.15,"Q",1,$B$48) -> 1442.927359 | H153: =Props("H","T",$F153+273.15,"P",G153,$B$48) -> 432.3877705 | I153: =Props("D","T",$F153+273.15,"P",G153,$B$48) -> 54.347304 | J153: =Props("S","T",$F153+273.15,"P",G153,$B$48) -> 1.794388418 | K153: =Props("P","T",$B153+273.15,"Q",1,$B$48) -> 2726.131032 | L153: =Props("H","P",K153,"S",J153,$B$48) -> 449.5558356 | M153: 1.304772949 | N153: 0.6725633756 | O153: 5.034288361 | P153: 0.9813427605 | Q153: 1.889305803 | R153: 0.6436924993 | S153: -0.04292662578 | T153: 0.9627418391 | U153: -0.009845373554
A154: 20 | B154: 50 | C154: 13.4 | D154: 2.22 | E154: 75 | F154: 25 | G154: =Props("P","T",$A154+273.15,"Q",1,$B$48) -> 1442.927359 | H154: =Props("H","T",$F154+273.15,"P",G154,$B$48) -> 432.3877705 | I154: =Props("D","T",$F154+273.15,"P",G154,$B$48) -> 54.347304 | J154: =Props("S","T",$F154+273.15,"P",G154,$B$48) -> 1.794388418 | K154: =Props("P","T",$B154+273.15,"Q",1,$B$48) -> 3062.99291 | L154: =Props("H","P",K154,"S",J154,$B$48) -> 452.7457632 | M154: 1.52684945 | N154: 0.6877700227 | O154: 4.968047725 | P154: 0.9684303557 | Q154: 2.12276307 | R154: 0.6595920457 | S154: -0.04097005697 | T154: 0.955061095 | U154: -0.006298046599
A155: 20 | B155: 55 | C155: 12.8 | D155: 2.52 | E155: 74.2 | F155: 25 | G155: =Props("P","T",$A155+273.15,"Q",1,$B$48) -> 1442.927359 | H155: =Props("H","T",$F155+273.15,"P",G155,$B$48) -> 432.3877705 | I155: =Props("D","T",$F155+273.15,"P",G155,$B$48) -> 54.347304 | J155: =Props("S","T",$F155+273.15,"P",G155,$B$48) -> 1.794388418 | K155: =Props("P","T",$B155+273.15,"Q",1,$B$48) -> 3431.600955 | L155: =Props("H","P",K155,"S",J155,$B$48) -> 455.8667467 | M155: 1.742140032 | N155: 0.6913254096 | O155: 4.915055216 | P155: 0.9581004319 | Q155: 2.378221561 | R155: 0.6681725994 | S155: -0.03349046621 | T155: 0.9466565107 | U155: -0.004811965996
A156: 20 | B156: 60 | C156: 12.15 | D156: 2.86 | E156: 73.2 | F156: 25 | G156: =Props("P","T",$A156+273.15,"Q",1,$B$48) -> 1442.927359 | H156: =Props("H","T",$F156+273.15,"P",G156,$B$48) -> 432.3877705 | I156: =Props("D","T",$F156+273.15,"P",G156,$B$48) -> 54.347304 | J156: =Props("S","T",$F156+273.15,"P",G156,$B$48) -> 1.794388418 | K156: =Props("P","T",$B156+273.15,"Q",1,$B$48) -> 3834.827699 | L156: =Props("H","P",K156,"S",J156,$B$48) -> 458.9266542 | M156: 1.942646286 | N156: 0.679246953 | O156: 4.84881458 | P156: =O156/$B$51 -> 0.9451880272 | Q156: 2.657672042 | R156: 0.6689732334 | S156: -0.01512516107 | T156: 0.9374625898 | U156: -0.002906843751
A157: =$N$3 -> 25 | B157: =$A9 -> 40 | C157: =$N9 -> 16.65 | D157: =$N24 -> 1.63 | E157: =$N39 -> 88.5 | F157: 30 | G157: =Props("P","T",$A157+273.15,"Q",1,$B$48) -> 1652.137797 | H157: =Props("H","T",$F157+273.15,"P",G157,$B$48) -> 433.234079 | I157: =Props("D","T",$F157+273.15,"P",G157,$B$48) -> 62.87245083 | J157: =Props("S","T",$F157+273.15,"P",G157,$B$48) -> 1.785305328 | K157: =Props("P","T",$B157+273.15,"Q",1,$B$48) -> 2418.608528 | L157: =Props("H","P",K157,"S",J157,$B$48) -> 443.3354121 | M157: 0.8939679832 | N157: 0.5484466155 | O157: 5.067402269 | P157: 0.9877977133 | Q157: 1.463926636 | R157: 0.5901120322 | S157: 0.07596986745 | T157: 0.9767368137 | U157: -0.007555637929
A158: =$N$3 -> 25 | B158: =$A10 -> 45 | C158: =$N10 -> 16 | D158: =$N25 -> 1.88 | E158: =$N40 -> 88.5 | F158: 30 | G158: =Props("P","T",$A158+273.15,"Q",1,$B$48) -> 1652.137797 | H158: =Props("H","T",$F158+273.15,"P",G158,$B$48) -> 433.234079 | I158: =Props("D","T",$F158+273.15,"P",G158,$B$48) -> 62.87245083 | J158: =Props("S","T",$F158+273.15,"P",G158,$B$48) -> 1.785305328 | K158: =Props("P","T",$B158+273.15,"Q",1,$B$48) -> 2726.131032 | L158: =Props("H","P",K158,"S",J158,$B$48) -> 446.5367884 | M158: 1.177289788 | N158: 0.6262179725 | O158: 5.067402269 | P158: 0.9877977133 | Q158: 1.650062747 | R158: 0.6178863467 | S158: -0.01330467377 | T158: 0.9706129356 | U158: -0.01041462071
A159: =$N$3 -> 25 | B159: =$A11 -> 50 | C159: =$N11 -> 15.3 | D159: =$N26 -> 2.16 | E159: =$N41 -> 87.5 | F159: 30 | G159: =Props("P","T",$A159+273.15,"Q",1,$B$48) -> 1652.137797 | H159: =Props("H","T",$F159+273.15,"P",G159,$B$48) -> 433.234079 | I159: =Props("D","T",$F159+273.15,"P",G159,$B$48) -> 62.87245083 | J159: =Props("S","T",$F159+273.15,"P",G159,$B$48) -> 1.785305328 | K159: =Props("P","T",$B159+273.15,"Q",1,$B$48) -> 3062.99291 | L159: =Props("H","P",K159,"S",J159,$B$48) -> 449.6631206 | M159: 1.437541142 | N159: 0.6655283063 | O159: 5.010143486 | P159: 0.9766361572 | Q159: 1.853957288 | R159: 0.6405232651 | S159: -0.03757171706 | T159: 0.9639048052 | U159: -0.006867122591
A160: =$N$3 -> 25 | B160: =$A12 -> 55 | C160: =$N12 -> 14.6 | D160: =$N27 -> 2.47 | E160: =$N42 -> 87 | F160: 30 | G160: =Props("P","T",$A160+273.15,"Q",1,$B$48) -> 1652.137797 | H160: =Props("H","T",$F160+273.15,"P",G160,$B$48) -> 433.234079 | I160: =Props("D","T",$F160+273.15,"P",G160,$B$48) -> 62.87245083 | J160: =Props("S","T",$F160+273.15,"P",G160,$B$48) -> 1.785305328 | K160: =Props("P","T",$B160+273.15,"Q",1,$B$48) -> 3431.600955 | L160: =Props("H","P",K160,"S",J160,$B$48) -> 452.7206136 | M160: 1.695328512 | N160: 0.6863678188 | O160: 4.981514095 | P160: 0.9710553792 | Q160: 2.077067034 | R160: 0.65713204 | S160: -0.0425949148 | T160: 0.9565644946 | U160: -0.006976609014
A161: =$N$3 -> 25 | B161: =$A13 -> 60 | C161: =$N13 -> 13.85 | D161: =$N28 -> 2.81 | E161: =$N43 -> 86 | F161: 30 | G161: =Props("P","T",$A161+273.15,"Q",1,$B$48) -> 1652.137797 | H161: =Props("H","T",$F161+273.15,"P",G161,$B$48) -> 433.234079 | I161: =Props("D","T",$F161+273.15,"P",G161,$B$48) -> 62.87245083 | J161: =Props("S","T",$F161+273.15,"P",G161,$B$48) -> 1.785305328 | K161: =Props("P","T",$B161+273.15,"Q",1,$B$48) -> 3834.827699 | L161: =Props("H","P",K161,"S",J161,$B$48) -> 455.7170911 | M161: 1.933539041 | N161: 0.6880921856 | O161: 4.924255312 | P161: 0.9598938231 | Q161: 2.321130662 | R161: 0.666968386 | S161: -0.03069908361 | T161: 0.9485348012 | U161: -0.004893745127

Sheet Model_tepelného_oběhu
A2: Zadání (vychází z listu Kompresor) | D2: Kompresor
A3: Teplota vyparovaci [°C] | B3: -10.44990214 | D3: Konstanty | E3: C1 | F3: C2 | G3: C3 | H3: C4 | I3: C5
A4: Teplota kondenzacni [°C] | B4: 34.80240441 | D4: Izoentropická účinnost | E4: -0.0014273 | F4: 0.0300406 | G4: -0.223623 | H4: 0.6484648 | I4: 0.0323579
A5: izoentropicka ucinnost [-] | B5: =E4*B12^4+F4*B12^3+G4*B12^2+H4*B12+I4 -> 0.6198286895 | D5: Dopravní součinitel | H5: -0.0329 | I5: 1.0249
A6: dopravni soucinitel [-] | B6: =B13 -> 0.9007406914
A7: prehrati na sani [K] | B7: =Kompresor!B49 -> 5 | D7: Výměníky tepla
A8: podchlazeni v kondenzatoru [K] | B8: =Kompresor!B50 -> 2 | D8: Veličiny | E8: Kondenzátor | F8: Výparník
A9: chladivo | B9: =Kompresor!B48 -> R410a | D9: teplota na vstupu [°C] | E9: 30 | F9: -5
A10: m vody [g/s] | B10: =E10 -> 305 | D10: průtok média [g/s] | E10: 305 | F10: 338
A11: Výkonnost [m3/h] | B11: =Kompresor!B51 -> 5.13 | D11: měrná tepelná kapacita [KJ/(kg*K)] | E11: 4.185 | F11: 3.7
A12: tlakovy pomer [-] | B12: =D21/D19 -> 3.773839169 | D12: součin UA [W/K] | E12: =2.39*829 -> 1981.31 | F12: =813*1.76 -> 1430.88
A13: Dopravní součinitel [-] | B13: =I5+H5*B12 -> 0.9007406914
A14: m chladiva [kg/h] | B14: =G20*B11*B13 -> 96.70345403
A15: m chladiva [g/s] | B15: =B14/3.6 -> 26.86207056
A17: Tepelný oběh chladiva
A18: Výpočtový bod | C18: Teplota [°C] | D18: Tlak [kPa] | E18: Entalpie [kJ/kg] | F18: Entropie [kJ/kg] | G18: Hustota [kg/m3]
A19: 1. | B19: Konec vypařování | C19: =B3 -> -10.44990214 | D19: =Props("P","T",C19+273.15,"Q",1,B9) -> 563.8246065 | E19: =Props("H","T",C19+273.15,"Q",1,B9) -> 417.8761489
A20: 2 | B20: Za výparníkem | C20: =C19+B7 -> -5.449902135 | D20: =Props("P","T",C19+273.15,"Q",1,B9) -> 563.8246065 | E20: =Props("H","T",C20+273.15,"P",D20,B9) -> 422.9905507 | F20: =Props("S","T",C20+273.15,"P",D20,B9) -> 1.850632482 | G20: =Props("D","T",C20+273.15,"P",D20,B9) -> 20.92786083
A21: 3' | B21: Po izoentropické kompresi | C21: =Props("T","P",D21,"S",F20,B9)-273.15 -> 60.40132547 | D21: =D23 -> 2127.783384 | E21: =Props("H","P",D21,"S",F20,B9) -> 461.1544266
A22: 3 | B22: Po kompresi | C22: =Props("T","H",E22,"P",D22,B9)-273.15 -> 80.68186922 | D22: =D23 -> 2127.783384 | E22: =(E21-E20)/B5+E20 -> 484.5622019
A23: 4 | B23: Počátek kondenzace | C23: =B4 -> 34.80240441 | D23: =Props("P","T",C23+273.15,"Q",1,B9) -> 2127.783384 | E23: =Props("H","T",C23+273.15,"Q",1,B9) -> 426.2155429
A24: 5 | B24: Konec kondenzace | C24: =Props("T","P",D22,"Q",0,B9)-273.15 -> 34.68312615 | D24: =D23 -> 2127.783384 | E24: =Props("H","T",C24+273.15,"Q",0,B9) -> 256.6265749
A25: 6 | B25: Za kondenzátorem | C25: =C24-B8 -> 32.68312615 | D25: =D23 -> 2127.783384 | E25: =Props("H","T",C25+273.15,"P",D25,B9) -> 252.9872838
A26: 7 | B26: Po seškrcení | C26: =C19 -> -10.44990214 | D26: =D19 -> 563.8246065 | E26: =E25 -> 252.9872838
A28: Model kondenzátoru | L28: Data pro graf
A29: médium | B29: pozice | C29: Chlazení par | D29: Kondenzace | E29: Podchlazování | L29: Stav | M29: Chladivo | N29: Voda | O29: h chladiva | P29: W predane
A30: voda | B30: vstup [°C] | C30: =D31 -> 33.64554887 | D30: =E31 -> 30.07658804 | E30: =E9 -> 30 | L30: po komp | M30: =C32 -> 80.68186922 | N30: =C31 -> 34.87344089 | O30: =E22 -> 484.5622019 | P30: 0
B31: výstup [°C] | C31: =C35/(E10/1000*E11)+C30 -> 34.87344089 | D31: =D35/(E11*E10/1000)+D30 -> 33.64554887 | E31: =E30+E35/(E10/1000*E11) -> 30.07658804 | L31: poc kond | M31: =C23 -> 34.80240441 | N31: =D31 -> 33.64554887 | O31: =E23 -> 426.2155429 | P31: =P30+E35 -> 0.09775889348
A32: chladivo | B32: vstup [°C] | C32: =C22 -> 80.68186922 | D32: =C33 -> 34.80240441 | E32: =D33 -> 34.68312615 | L32: konec kon | M32: =C24 -> 34.68312615 | N32: =D30 -> 30.07658804 | O32: =E24 -> 256.6265749 | P32: =P31+D35 -> 4.653269718
B33: výstup [°C] | C33: =C23 -> 34.80240441 | D33: =C24 -> 34.68312615 | E33: =D33-B8 -> 32.68312615 | L33: za kond | M33: =C25 -> 32.68312615 | N33: =E30 -> 30 | O33: =E25 -> 252.9872838 | P33: =P32+C35 -> 6.220581791
A34: Logaritmický teplotní spád [K] | C34: =((C32-C31)-(C33-C30))/LN((C32-C31)/(C33-C30)) -> 12.13766112 | D34: =((D32-D31)-(D33-D30))/LN((D32-D31)/(D33-D30)) -> 2.496565975 | E34: =((E32-E31)-(E33-E30))/LN((E32-E31)/(E33-E30)) -> 3.558618293
A35: Kalorimetrická rovnice | B35: Topný výkon CHLADIVO [kW] | C35: =$B$14/3600*(E22-E23) -> 1.567312073 | D35: =$B$14/3600*(E23-E24) -> 4.555510824 | E35: =$B$14/3600*(E24-E25) -> 0.09775889348
B36: Topný výkon VODA [kW] | C36: =$B$10/1000*E11*(C$31-C$30) -> 1.567312073 | D36: =$B$10/1000*E11*(D$31-D$30) -> 4.555510824 | E36: =$B$10/1000*E11*(E$31-E$30) -> 0.09775889348
A37: Rovnice prostupu tepla
A38: UA [W/K] | C38: =IF(C34=0,0,C35*1000/C34) -> 129.1280138 | D38: =IF(D34=0,0,D35*1000/D34) -> 1824.71077 | E38: =IF(E34=0,0,E35*1000/E34) -> 27.47102539
A39: Celkove UA [W/K] | C39: =SUM(C38:E38) -> 1981.30981
C40: Rozdíl UA (nutné pro iteraci) | D40: =E12-C39 -> 0.0001903194368
A41: Model výparníku | L41: Data pro graf
A42: médium | B42: pozice | C42: Vypařování | D42: Přehřívání | L42: Stav | M42: Chladivo | N42: Solanka | O42: h chladiva | P42: W predane
A43: Solanka | B43: vstup [°C] | C43: =D44 -> -5.109854008 | D43: =F9 -> -5 | L43: po seskrc | M43: =C45 -> -10.44990214 | N43: =C44 -> -8.651559052 | O43: =E26 -> 252.9872838 | P43: =0 -> 0
B44: výstup [°C] | C44: =C43-(E19-E26)*B14/3.6/(F10*F11) -> -8.651559052 | D44: =D43-(E20-E19)*B14/3.6/(F10*F11) -> -5.109854008 | L44: konec vyp | M44: =D45 -> -10.44990214 | N44: =C43 -> -5.109854008 | O44: =E19 -> 417.8761489 | P44: =P43+C48 -> 4.429256327
A45: chladivo | B45: vstup [°C] | C45: =C26 -> -10.44990214 | D45: =C46 -> -10.44990214 | L45: za vypar | M45: =D46 -> -5.449902135 | N45: =D43 -> -5 | O45: =E20 -> 422.9905507 | P45: =P44+D48 -> 4.56663975
B46: výstup [°C] | C46: =C19 -> -10.44990214 | D46: =C20 -> -5.449902135
A47: Logaritmický teplotní spád [K] | C47: =IF((C43-C45)/(C44-C46)<0,100,((C43-C45)-(C44-C46))/LN((C43-C45)/(C44-C46))) -> 3.254140149 | D47: =((D44-D45)-(D43-D46))/LN((D44-D45)/(D43-D46)) -> 1.976647263
A48: Kalorimetrická rovnice | B48: Topný výkon CHLADIVO [kW] | C48: =B14/3.6*(E19-E26)/1000 -> 4.429256327 | D48: =B14/3600*(E20-E19) -> 0.1373834225
B49: Topný výkon vzduch [kW] | C49: =F10/1000*F11*(C43-C44) -> 4.429256327 | D49: =F10/1000*F11*(D43-D44) -> 0.1373834225
A50: Rovnice prostupu tepla
A51: UA [W/K] | C51: =IF(C47=0,0,C48*1000/C47) -> 1361.114188 | D51: =IF(D47=0,0,D48*1000/D47) -> 69.5032569
A52: Celkove UA [W/K] | C52: =SUM(C51:D51) -> 1430.617445
C53: Rozdíl UA (nutné pro iteraci) | D53: =F12-C52 -> 0.2625546664

Sheet ČSN EN 14511
A2: Výpočtové podmínky podle ČSN EN 14511 | W2: Data pro graf
A3: Jednotky typu voda-voda, solanka-voda - nízká teplota | W3: Použití | Y3: Vstupní teplota | Z3: Topný výkon | AA3: Příkon | AB3: Topný faktor
C4: Venkovní výměník | E4: Vnitřní výměník | G4: Naměřené hodnoty | W4: Nízkoteplotní | Y4: =C9 -> -5 | Z4: =J9 -> 6.29 | AA4: =K9 -> 1.67 | AB4: =L9 -> 3.766467066
C5: Vstupní teplota | D5: Výstupní teplota | E5: Vstupní teplota | F5: Výstupní teplota | G5: průtok chladiva | H5: průtok solanky | I5: průtok vody | J5: Topný výkon | K5: Příkon | L5: Topný faktor | Y5: =C7 -> 0 | Z5: =J7 -> 7.16 | AA5: 1.66 | AB5: 4.313253012
C6: [°C] | D6: [°C] | E6: [°C] | F6: [°C] | G6: [g/s] | H6: [g/s] | I6: [g/s] | J6: [kW] | K6: [kW] | L6: [-] | Y6: =C8 -> 5 | Z6: 8.07 | AA6: 1.67 | AB6: 4.832335329
A7: Standartní podmínky | B7: solanka | C7: 0 | D7: -3 | E7: 30 | F7: 35 | G7: 32.2 | H7: 495 | I7: 342 | J7: 7.16 | K7: 1.66 | L7: =J7/K7 -> 4.313253012 | W7: Vysokoteplotní | Y7: =C18 -> -5 | Z7: =J18 -> 5.94 | AA7: =K18 -> 2.47 | AB7: =L18 -> 2.4048583
A8: Uživatelské podmínky* | B8: solanka | C8: 5 | D8: 1.5 | E8: 29.4 | F8: 35 | G8: 33.9 | H8: =$H$7 -> 495 | I8: =$I$7 -> 342 | J8: 8.07 | K8: 1.67 | L8: =J8/K8 -> 4.832335329 | Y8: =C16 -> 0 | Z8: =J16 -> 6.81 | AA8: 2.52 | AB8: 2.702380952
B9: solanka | C9: -5 | D9: -7.53 | E9: 30.6 | F9: 35 | G9: 27.3 | H9: =$H$7 -> 495 | I9: =$I$7 -> 342 | J9: 6.29 | K9: 1.67 | L9: =J9/K9 -> 3.766467066 | Y9: =C17 -> 5 | Z9: 7.61 | AA9: 2.51 | AB9: 3.03187251
A10: * Prováděno při stejném průtoku jako během zkoušky při odpovídajících standardních podmínkách
A12: Jednotky typu voda-voda, solanka-voda - vysoká teplota
C13: Venkovní výměník | E13: Vnitřní výměník | G13: Naměřené hodnoty
C14: Vstupní teplota | D14: Výstupní teplota | E14: Vstupní teplota | F14: Výstupní teplota | G14: průtok chladiva | H14: průtok solanky | I14: průtok vody | J14: Topný výkon | K14: Příkon | L14: Topný faktor
C15: [°C] | D15: [°C] | E15: [°C] | F15: [°C] | G15: [g/s] | H15: [g/s] | I15: [g/s] | J15: [kW] | K15: [kW] | L15: [-]
A16: Standartní podmínky | B16: solanka | C16: 0 | D16: -3 | E16: 47 | F16: 55 | G16: 31 | H16: 387 | I16: 203 | J16: 6.81 | K16: 2.52 | L16: =J16/K16 -> 2.702380952
A17: Uživatelské podmínky* | B17: solanka | C17: 5 | D17: 1.44 | E17: 46.06 | F17: 55 | G17: 36.5 | H17: =$H$16 -> 387 | I17: =$I$16 -> 203 | J17: 7.61 | K17: 2.51 | L17: =J17/K17 -> 3.03187251
B18: solanka | C18: -5 | D18: -7.42 | E18: 48 | F18: 55 | G18: 25.4 | H18: =$H$16 -> 387 | I18: =$I$16 -> 203 | J18: 5.94 | K18: 2.47 | L18: =J18/K18 -> 2.4048583
A19: * Prováděno při stejném průtoku jako během zkoušky při odpovídajících standardních podmínkách
A22: Postup
A23: 1 | B23: Při standardních podmínkách nastavím při teplotě vstupní vody na kondenzátor takový průtok vody, aby ohřátí vody bylo 5K
A24: 2 | B24: Nastavím takový průtok glykolu, aby ochlazení glykolu bylo při standardních podmínkách 3K
A25: 3 | B25: Při všech uživatelských podmínkách udržuji průtok vody/glykolu a měním vstupní teploty, tak aby výstupní teploty odpovídaly hodnotaám z tabulek
